Workbook

Sheet Leia-me
F2: P L A N I L H A D E O R Ç A M E N T O E M P R E S A R I A L
B6: Esta planilha foi feita para simplificar a vida dos profissionais de planejamento, este modelo utiliza valores fechados (inseridos), mas pode ser complementada com bancos de dados analíticos que a alimentarão, como por exemplo planilhas de contas a pagar e a receber.
B10: Desta forma você saberá onde gasta, onde ganha e quem são os responsáveis por esses gastos e receitas. Permitindo que você faça cortes de gastos onde realmente devem ser feitos, assim como, verificar quais produtos e serviços são mais rentáves, e quais não são.
B14: Para utilizá-la siga o roteiro abaixo, as contas existentes podem ser apagadas, são apenas exemplos:
C16: 1º | D16: Na planilha de Cadastros crie:
E17: 1º-a | F17: Os Centros de Custos que poderão ser numéricos, alfabéticos ou alfanuméricos
E18: 1º-b | F18: Crie os grupos de contas de despesas e de receitas
E19: 1º-c | F19: Em contas, Selecione o grupo a que vai vincular uma determinada conta.
E20: 1º-d | F20: Crie a conta propriamente dita, no máximo 50 contas por grupo. Se necessitar de mais contas solicite
F21: alteração.
D23: Agora que as contas estão criadas, clique no botão existente no topo da planilha - conforme exemplo abaixo. Ele exe-
D24: cutará um macro que classificará as listas (Centro de Custos, Grupos e Contas) em ordem alfabética, para facilitar a
D25: procura das contas no momento dos lançamentos na Entrada de Dados, que é o orçamento propriamente dito.
F26: Botão:
D30: Ele também colocará as contas nos relatórios comparativos, para o acompanhamento da evolução entre o
D31: orçado e o realizado.
C34: 2º | D34: Na planilha Entrada de Dados:
D35: Insira os valores para cada conta criada escolhendo:
E36: 2º-a | F36: Informe o ano do Orçamento.
E37: 2º-b | F37: Mês, o ano é o informado.
F38: *Não há a necessidade de ser informar os dados em ordem cronológica.
E39: 2º-c | F39: Centro de Custos
E40: 2º-d | F40: Grupo
E41: 2º-e | F41: Conta
C43: 3º | D43: Após terminar a inserção de um lote da dados, clique no botão existente no topo da planilha - conforme exemplo abaixo,
D44: para que o Excel ordene os dados inseridos.
F45: Botão:
C50: 4º | D50: Informe os valores previstos.
C52: 5º | D52: Insira os valores realizados à medida que isso ocorre.
D53: Esta planilha pode, opcionalmente, ser alimentada por outra planilha em que seriam informados os detalhes de cada
D54: registro, ou lançamento. Desta forma, poder-se-á ter o detalhamento dos valores realizados no próprio Excel.
B56: Após a inserção dos dados, os relatórios abaixo estarão disponíveis para uso, são eles:
B58: Previsão Orçamentária (disponível na versão completa)
C59: Acumula os valores previstos por conta, possibilitando a visão dos gastos e receitas por Centro de Custo ou global, anualizado ou por mês.
B62: Comparativo Acumulado Geral
C63: Acumula os valores por conta, independente do centro de custo, até o mês informado.
B65: Comparativo Acumulado por Centro de Custos (disponível na versão completa)
C66: Acumula os valores por conta exclusivamente do centro de custo selecionado.
B68: Comparativo Mensal Geral (disponível na versão completa)
C69: Sumariza os valores por conta, independente do centro de custo, para o mês informado.
B71: Comparativo Acumulado por Centro de Custos (disponível na versão completa)
C72: Compara os valores por conta exclusivamente do centro de custo selecionado
B74: Todos
C75: Comparam os valores das contas, respectivos grupos e Centros de custos com a receita operacional.
C76: Acumulam a receita com os mesmos parâmetros fornecidos para os gastos.
B79: Qualquer dúvida, sugestão ou crítica envie um email para mim, ou acesse a minha página:
C81: www.geraldcorelli.com
C83: corelli@geraldcorelli.com
B85: Grato por utilizar este produto.
B87: Gerald Corelli

Sheet Entrada de Dados
C1: B A N C O D E D A D O S O R Ç A M E N T Á R I O
C3: Previsto e Realizado
C4: 2011
H5: Valores
B6: Mês | C6: Centro de Custos | D6: Flag2 | E6: Grupo | F6: Flag | G6: Conta | H6: Previsto | I6: Realizado | J6: % Realizado | K6: Observação | N6: Calendário
B7: 2011-01-01 | C7: Finanças | D7: =HLOOKUP(E7,Cadastros!$U$5:$AX$7,3,FALSE) -> 11 | E7: 03 Treinamentos | F7: =HLOOKUP(E7,Cadastros!$U$5:$AX$7,3,FALSE) -> 11 | G7: Informática | H7: 4000 | I7: 3500 | J7: =IF(I7="","",I7/H7) -> 0.875 | N7: =DATE(ano,1,1) -> 2011-01-01
B8: 2011-01-01 | C8: Produção | D8: =HLOOKUP(E8,Cadastros!$U$5:$AX$7,3,FALSE) -> 7 | E8: 03 Custos | F8: =HLOOKUP(E8,Cadastros!$U$5:$AX$7,3,FALSE) -> 7 | G8: Mão de Obra | H8: 2500 | I8: 2500 | J8: 1 | N8: =DATE(ano,2,1) -> 2011-02-01
B9: 2011-01-01 | C9: Receitas Operacionais | D9: =HLOOKUP(E9,Cadastros!$U$5:$AX$7,3,FALSE) -> 4 | E9: 02 Vendas | F9: =HLOOKUP(E9,Cadastros!$U$5:$AX$7,3,FALSE) -> 4 | G9: Produto "A" | H9: 25000 | I9: 24500 | J9: 0.98 | N9: =DATE(ano,3,1) -> 2011-03-01
B10: 2011-01-01 | C10: Recursos Humanos | D10: =HLOOKUP(E10,Cadastros!$U$5:$AX$7,3,FALSE) -> 5 | E10: 03 Administrativas | F10: =HLOOKUP(E10,Cadastros!$U$5:$AX$7,3,FALSE) -> 5 | G10: Matl. De Escritório | H10: 100 | I10: 58 | J10: 0.58 | N10: =DATE(ano,4,1) -> 2011-04-01
B11: 2011-01-01 | C11: Recursos Humanos | D11: =HLOOKUP(E11,Cadastros!$U$5:$AX$7,3,FALSE) -> 5 | E11: 03 Administrativas | F11: =HLOOKUP(E11,Cadastros!$U$5:$AX$7,3,FALSE) -> 5 | G11: Matl. De Escritório | H11: 1200 | I11: 1500 | J11: 1.25 | N11: =DATE(ano,5,1) -> 2011-05-01
B12: 2011-01-01 | C12: Serviços Gerais (mass alocation) | D12: =HLOOKUP(E12,Cadastros!$U$5:$AX$7,3,FALSE) -> 10 | E12: 03 Infraestrutura | F12: =HLOOKUP(E12,Cadastros!$U$5:$AX$7,3,FALSE) -> 10 | G12: Água e Esgoto | H12: 450 | I12: 425 | J12: 0.9444444444 | N12: =DATE(ano,6,1) -> 2011-06-01
B13: 2011-01-01 | C13: Serviços Gerais (mass alocation) | D13: =HLOOKUP(E13,Cadastros!$U$5:$AX$7,3,FALSE) -> 10 | E13: 03 Infraestrutura | F13: =HLOOKUP(E13,Cadastros!$U$5:$AX$7,3,FALSE) -> 10 | G13: Energia Elétrica | H13: 650 | I13: 720 | J13: 1.107692308 | N13: =DATE(ano,7,1) -> 2011-07-01
B14: 2011-01-01 | C14: Serviços Gerais (mass alocation) | D14: =HLOOKUP(E14,Cadastros!$U$5:$AX$7,3,FALSE) -> 10 | E14: 03 Infraestrutura | F14: =HLOOKUP(E14,Cadastros!$U$5:$AX$7,3,FALSE) -> 10 | G14: Manutenção Predial | H14: 350 | I14: 120 | J14: 0.3428571429 | N14: =DATE(ano,8,1) -> 2011-08-01
B15: 2011-02-01 | C15: Finanças | D15: =HLOOKUP(E15,Cadastros!$U$5:$AX$7,3,FALSE) -> 5 | E15: 03 Administrativas | F15: =HLOOKUP(E15,Cadastros!$U$5:$AX$7,3,FALSE) -> 5 | G15: Matl. De Escritório | H15: 500 | I15: 900 | J15: 1.8 | N15: =DATE(ano,9,1) -> 2011-09-01
B16: 2011-02-01 | C16: Finanças | D16: =HLOOKUP(E16,Cadastros!$U$5:$AX$7,3,FALSE) -> 11 | E16: 03 Treinamentos | F16: =HLOOKUP(E16,Cadastros!$U$5:$AX$7,3,FALSE) -> 11 | G16: Inglês in company | H16: 1500 | I16: 1500 | J16: 1 | N16: =DATE(ano,10,1) -> 2011-10-01
B17: 2011-02-01 | C17: Presidência | D17: =HLOOKUP(E17,Cadastros!$U$5:$AX$7,3,FALSE) -> 6 | E17: 03 Comunicações | F17: =HLOOKUP(E17,Cadastros!$U$5:$AX$7,3,FALSE) -> 6 | G17: Internet | H17: 500 | I17: 450 | J17: 0.9 | N17: =DATE(ano,11,1) -> 2011-11-01
B18: 2011-02-01 | C18: Receitas Operacionais | D18: =HLOOKUP(E18,Cadastros!$U$5:$AX$7,3,FALSE) -> 4 | E18: 02 Vendas | F18: =HLOOKUP(E18,Cadastros!$U$5:$AX$7,3,FALSE) -> 4 | G18: Produto "A" | H18: 50000 | I18: 4500 | J18: 0.09 | N18: =DATE(ano,12,1) -> 2011-12-01
B19: 2011-02-01 | C19: Recursos Humanos | D19: =HLOOKUP(E19,Cadastros!$U$5:$AX$7,3,FALSE) -> 5 | E19: 03 Administrativas | F19: =HLOOKUP(E19,Cadastros!$U$5:$AX$7,3,FALSE) -> 5 | G19: Salários | H19: 1200 | I19: 1000 | J19: 0.8333333333
B20: 2011-02-01 | C20: Serviços Gerais (mass alocation) | D20: =HLOOKUP(E20,Cadastros!$U$5:$AX$7,3,FALSE) -> 10 | E20: 03 Infraestrutura | F20: =HLOOKUP(E20,Cadastros!$U$5:$AX$7,3,FALSE) -> 10 | G20: Água e Esgoto | H20: 450 | I20: 430 | J20: 0.9555555556
B21: 2011-02-01 | C21: Serviços Gerais (mass alocation) | D21: =HLOOKUP(E21,Cadastros!$U$5:$AX$7,3,FALSE) -> 10 | E21: 03 Infraestrutura | F21: =HLOOKUP(E21,Cadastros!$U$5:$AX$7,3,FALSE) -> 10 | G21: Energia Elétrica | H21: 650 | I21: 620 | J21: 0.9538461538
B22: 2011-02-01 | C22: Serviços Gerais (mass alocation) | D22: =HLOOKUP(E22,Cadastros!$U$5:$AX$7,3,FALSE) -> 10 | E22: 03 Infraestrutura | F22: =HLOOKUP(E22,Cadastros!$U$5:$AX$7,3,FALSE) -> 10 | G22: Manutenção Predial | H22: 350 | I22: 400 | J22: 1.142857143
B23: 2011-03-01 | C23: Finanças | D23: =HLOOKUP(E23,Cadastros!$U$5:$AX$7,3,FALSE) -> 11 | E23: 03 Treinamentos | F23: =HLOOKUP(E23,Cadastros!$U$5:$AX$7,3,FALSE) -> 11 | G23: Inglês in company | H23: 1500 | I23: 1500 | J23: 1
B24: 2011-03-01 | C24: Finanças | D24: =HLOOKUP(E24,Cadastros!$U$5:$AX$7,3,FALSE) -> 11 | E24: 03 Treinamentos | F24: =HLOOKUP(E24,Cadastros!$U$5:$AX$7,3,FALSE) -> 11 | G24: Informática | H24: 650 | I24: 650 | J24: 1
B25: 2011-03-01 | C25: Serviços Gerais (mass alocation) | D25: =HLOOKUP(E25,Cadastros!$U$5:$AX$7,3,FALSE) -> 10 | E25: 03 Infraestrutura | F25: =HLOOKUP(E25,Cadastros!$U$5:$AX$7,3,FALSE) -> 10 | G25: Água e Esgoto | H25: 450 | I25: 350 | J25: 0.7777777778
B26: 2011-03-01 | C26: Serviços Gerais (mass alocation) | D26: =HLOOKUP(E26,Cadastros!$U$5:$AX$7,3,FALSE) -> 10 | E26: 03 Infraestrutura | F26: =HLOOKUP(E26,Cadastros!$U$5:$AX$7,3,FALSE) -> 10 | G26: Energia Elétrica | H26: 650 | I26: 645 | J26: 0.9923076923
B27: 2011-03-01 | C27: Serviços Gerais (mass alocation) | D27: =HLOOKUP(E27,Cadastros!$U$5:$AX$7,3,FALSE) -> 10 | E27: 03 Infraestrutura | F27: =HLOOKUP(E27,Cadastros!$U$5:$AX$7,3,FALSE) -> 10 | G27: Manutenção Predial | H27: 350 | I27: 300 | J27: 0.8571428571
B28: 2011-04-01 | C28: Finanças | D28: =HLOOKUP(E28,Cadastros!$U$5:$AX$7,3,FALSE) -> 11 | E28: 03 Treinamentos | F28: =HLOOKUP(E28,Cadastros!$U$5:$AX$7,3,FALSE) -> 11 | G28: Inglês in company | H28: 1500 | I28: 1500 | J28: 1
B29: 2011-04-01 | C29: Receitas Operacionais | D29: =HLOOKUP(E29,Cadastros!$U$5:$AX$7,3,FALSE) -> 4 | E29: 02 Vendas | F29: =HLOOKUP(E29,Cadastros!$U$5:$AX$7,3,FALSE) -> 4 | G29: Produto "B" | H29: 9000 | I29: 7500 | J29: 0.8333333333
B30: 2011-05-01 | C30: Finanças | D30: =HLOOKUP(E30,Cadastros!$U$5:$AX$7,3,FALSE) -> 11 | E30: 03 Treinamentos | F30: =HLOOKUP(E30,Cadastros!$U$5:$AX$7,3,FALSE) -> 11 | G30: Inglês in company | H30: 1500 | I30: 1500 | J30: 1
B31: 2011-06-01 | C31: Finanças | D31: =HLOOKUP(E31,Cadastros!$U$5:$AX$7,3,FALSE) -> 11 | E31: 03 Treinamentos | F31: =HLOOKUP(E31,Cadastros!$U$5:$AX$7,3,FALSE) -> 11 | G31: Inglês in company | H31: 1500 | I31: 1500 | J31: 1
B32: 2011-07-01 | C32: Finanças | D32: =HLOOKUP(E32,Cadastros!$U$5:$AX$7,3,FALSE) -> 11 | E32: 03 Treinamentos | F32: =HLOOKUP(E32,Cadastros!$U$5:$AX$7,3,FALSE) -> 11 | G32: Inglês in company | H32: 1500 | I32: 1500 | J32: 1
B33: 2011-08-01 | C33: Finanças | D33: =HLOOKUP(E33,Cadastros!$U$5:$AX$7,3,FALSE) -> 11 | E33: 03 Treinamentos | F33: =HLOOKUP(E33,Cadastros!$U$5:$AX$7,3,FALSE) -> 11 | G33: Inglês in company | H33: 1500 | I33: 1500 | J33: 1
B34: 2011-08-01 | C34: Publicidade | D34: =HLOOKUP(E34,Cadastros!$U$5:$AX$7,3,FALSE) -> 6 | E34: 03 Comunicações | F34: =HLOOKUP(E34,Cadastros!$U$5:$AX$7,3,FALSE) -> 6 | G34: Internet | H34: 250 | I34: 250 | J34: 1
B35: 2011-09-01 | C35: Finanças | D35: =HLOOKUP(E35,Cadastros!$U$5:$AX$7,3,FALSE) -> 11 | E35: 03 Treinamentos | F35: =HLOOKUP(E35,Cadastros!$U$5:$AX$7,3,FALSE) -> 11 | G35: Inglês in company | H35: 1500 | I35: 1500 | J35: 1
B36: 2011-10-01 | C36: Finanças | D36: =HLOOKUP(E36,Cadastros!$U$5:$AX$7,3,FALSE) -> 11 | E36: 03 Treinamentos | F36: =HLOOKUP(E36,Cadastros!$U$5:$AX$7,3,FALSE) -> 11 | G36: Inglês in company | H36: 1500 | I36: 1500 | J36: 1
B37: 2011-11-01 | C37: Finanças | D37: =HLOOKUP(E37,Cadastros!$U$5:$AX$7,3,FALSE) -> 11 | E37: 03 Treinamentos | F37: =HLOOKUP(E37,Cadastros!$U$5:$AX$7,3,FALSE) -> 11 | G37: Inglês in company | H37: 1500 | I37: 1500 | J37: 1
B38: 2011-12-01 | C38: Finanças | D38: =HLOOKUP(E38,Cadastros!$U$5:$AX$7,3,FALSE) -> 11 | E38: 03 Treinamentos | F38: =HLOOKUP(E38,Cadastros!$U$5:$AX$7,3,FALSE) -> 11 | G38: Inglês in company | H38: 1500 | I38: 1500 | J38: 1
D39: =HLOOKUP(E39,Cadastros!$U$5:$AX$7,3,FALSE) -> 12 | F39: =HLOOKUP(E39,Cadastros!$U$5:$AX$7,3,FALSE) -> 12
D40: =HLOOKUP(E40,Cadastros!$U$5:$AX$7,3,FALSE) -> 12 | F40: =HLOOKUP(E40,Cadastros!$U$5:$AX$7,3,FALSE) -> 12
D41: =HLOOKUP(E41,Cadastros!$U$5:$AX$7,3,FALSE) -> 12 | F41: =HLOOKUP(E41,Cadastros!$U$5:$AX$7,3,FALSE) -> 12
D42: =HLOOKUP(E42,Cadastros!$U$5:$AX$7,3,FALSE) -> 12 | F42: =HLOOKUP(E42,Cadastros!$U$5:$AX$7,3,FALSE) -> 12
D43: =HLOOKUP(E43,Cadastros!$U$5:$AX$7,3,FALSE) -> 12 | F43: =HLOOKUP(E43,Cadastros!$U$5:$AX$7,3,FALSE) -> 12
D44: =HLOOKUP(E44,Cadastros!$U$5:$AX$7,3,FALSE) -> 12 | F44: =HLOOKUP(E44,Cadastros!$U$5:$AX$7,3,FALSE) -> 12
D45: =HLOOKUP(E45,Cadastros!$U$5:$AX$7,3,FALSE) -> 12 | F45: =HLOOKUP(E45,Cadastros!$U$5:$AX$7,3,FALSE) -> 12
D46: =HLOOKUP(E46,Cadastros!$U$5:$AX$7,3,FALSE) -> 12 | F46: =HLOOKUP(E46,Cadastros!$U$5:$AX$7,3,FALSE) -> 12
D47: =HLOOKUP(E47,Cadastros!$U$5:$AX$7,3,FALSE) -> 12 | F47: =HLOOKUP(E47,Cadastros!$U$5:$AX$7,3,FALSE) -> 12
D48: =HLOOKUP(E48,Cadastros!$U$5:$AX$7,3,FALSE) -> 12 | F48: =HLOOKUP(E48,Cadastros!$U$5:$AX$7,3,FALSE) -> 12
D49: =HLOOKUP(E49,Cadastros!$U$5:$AX$7,3,FALSE) -> 12 | F49: =HLOOKUP(E49,Cadastros!$U$5:$AX$7,3,FALSE) -> 12
D50: =HLOOKUP(E50,Cadastros!$U$5:$AX$7,3,FALSE) -> 12 | F50: =HLOOKUP(E50,Cadastros!$U$5:$AX$7,3,FALSE) -> 12
D51: =HLOOKUP(E51,Cadastros!$U$5:$AX$7,3,FALSE) -> 12 | F51: =HLOOKUP(E51,Cadastros!$U$5:$AX$7,3,FALSE) -> 12
D52: =HLOOKUP(E52,Cadastros!$U$5:$AX$7,3,FALSE) -> 12 | F52: =HLOOKUP(E52,Cadastros!$U$5:$AX$7,3,FALSE) -> 12
D53: =HLOOKUP(E53,Cadastros!$U$5:$AX$7,3,FALSE) -> 12 | F53: =HLOOKUP(E53,Cadastros!$U$5:$AX$7,3,FALSE) -> 12
D54: =HLOOKUP(E54,Cadastros!$U$5:$AX$7,3,FALSE) -> 12 | F54: =HLOOKUP(E54,Cadastros!$U$5:$AX$7,3,FALSE) -> 12
D55: =HLOOKUP(E55,Cadastros!$U$5:$AX$7,3,FALSE) -> 12 | F55: =HLOOKUP(E55,Cadastros!$U$5:$AX$7,3,FALSE) -> 12
D56: =HLOOKUP(E56,Cadastros!$U$5:$AX$7,3,FALSE) -> 12 | F56: =HLOOKUP(E56,Cadastros!$U$5:$AX$7,3,FALSE) -> 12
D57: =HLOOKUP(E57,Cadastros!$U$5:$AX$7,3,FALSE) -> 12 | F57: =HLOOKUP(E57,Cadastros!$U$5:$AX$7,3,FALSE) -> 12
D58: =HLOOKUP(E58,Cadastros!$U$5:$AX$7,3,FALSE) -> 12 | F58: =HLOOKUP(E58,Cadastros!$U$5:$AX$7,3,FALSE) -> 12
D59: =HLOOKUP(E59,Cadastros!$U$5:$AX$7,3,FALSE) -> 12 | F59: =HLOOKUP(E59,Cadastros!$U$5:$AX$7,3,FALSE) -> 12
D60: =HLOOKUP(E60,Cadastros!$U$5:$AX$7,3,FALSE) -> 12 | F60: =HLOOKUP(E60,Cadastros!$U$5:$AX$7,3,FALSE) -> 12
D61: =HLOOKUP(E61,Cadastros!$U$5:$AX$7,3,FALSE) -> 12 | F61: =HLOOKUP(E61,Cadastros!$U$5:$AX$7,3,FALSE) -> 12
D62: =HLOOKUP(E62,Cadastros!$U$5:$AX$7,3,FALSE) -> 12 | F62: =HLOOKUP(E62,Cadastros!$U$5:$AX$7,3,FALSE) -> 12
D63: =HLOOKUP(E63,Cadastros!$U$5:$AX$7,3,FALSE) -> 12 | F63: =HLOOKUP(E63,Cadastros!$U$5:$AX$7,3,FALSE) -> 12
D64: =HLOOKUP(E64,Cadastros!$U$5:$AX$7,3,FALSE) -> 12 | F64: =HLOOKUP(E64,Cadastros!$U$5:$AX$7,3,FALSE) -> 12
D65: =HLOOKUP(E65,Cadastros!$U$5:$AX$7,3,FALSE) -> 12 | F65: =HLOOKUP(E65,Cadastros!$U$5:$AX$7,3,FALSE) -> 12
D66: =HLOOKUP(E66,Cadastros!$U$5:$AX$7,3,FALSE) -> 12 | F66: =HLOOKUP(E66,Cadastros!$U$5:$AX$7,3,FALSE) -> 12
D67: =HLOOKUP(E67,Cadastros!$U$5:$AX$7,3,FALSE) -> 12 | F67: =HLOOKUP(E67,Cadastros!$U$5:$AX$7,3,FALSE) -> 12
D68: =HLOOKUP(E68,Cadastros!$U$5:$AX$7,3,FALSE) -> 12 | F68: =HLOOKUP(E68,Cadastros!$U$5:$AX$7,3,FALSE) -> 12
D69: =HLOOKUP(E69,Cadastros!$U$5:$AX$7,3,FALSE) -> 12 | F69: =HLOOKUP(E69,Cadastros!$U$5:$AX$7,3,FALSE) -> 12
D70: =HLOOKUP(E70,Cadastros!$U$5:$AX$7,3,FALSE) -> 12 | F70: =HLOOKUP(E70,Cadastros!$U$5:$AX$7,3,FALSE) -> 12
D71: =HLOOKUP(E71,Cadastros!$U$5:$AX$7,3,FALSE) -> 12 | F71: =HLOOKUP(E71,Cadastros!$U$5:$AX$7,3,FALSE) -> 12 | J71: =IF(I71="","",I71/H71) -> 
D72: =HLOOKUP(E72,Cadastros!$U$5:$AX$7,3,FALSE) -> 12 | F72: =HLOOKUP(E72,Cadastros!$U$5:$AX$7,3,FALSE) -> 12
D73: =HLOOKUP(E73,Cadastros!$U$5:$AX$7,3,FALSE) -> 12 | F73: =HLOOKUP(E73,Cadastros!$U$5:$AX$7,3,FALSE) -> 12
D74: =HLOOKUP(E74,Cadastros!$U$5:$AX$7,3,FALSE) -> 12 | F74: =HLOOKUP(E74,Cadastros!$U$5:$AX$7,3,FALSE) -> 12
D75: =HLOOKUP(E75,Cadastros!$U$5:$AX$7,3,FALSE) -> 12 | F75: =HLOOKUP(E75,Cadastros!$U$5:$AX$7,3,FALSE) -> 12
D76: =HLOOKUP(E76,Cadastros!$U$5:$AX$7,3,FALSE) -> 12 | F76: =HLOOKUP(E76,Cadastros!$U$5:$AX$7,3,FALSE) -> 12
D77: =HLOOKUP(E77,Cadastros!$U$5:$AX$7,3,FALSE) -> 12 | F77: =HLOOKUP(E77,Cadastros!$U$5:$AX$7,3,FALSE) -> 12
D78: =HLOOKUP(E78,Cadastros!$U$5:$AX$7,3,FALSE) -> 12 | F78: =HLOOKUP(E78,Cadastros!$U$5:$AX$7,3,FALSE) -> 12
D79: =HLOOKUP(E79,Cadastros!$U$5:$AX$7,3,FALSE) -> 12 | F79: =HLOOKUP(E79,Cadastros!$U$5:$AX$7,3,FALSE) -> 12
D80: =HLOOKUP(E80,Cadastros!$U$5:$AX$7,3,FALSE) -> 12 | F80: =HLOOKUP(E80,Cadastros!$U$5:$AX$7,3,FALSE) -> 12
D81: =HLOOKUP(E81,Cadastros!$U$5:$AX$7,3,FALSE) -> 12 | F81: =HLOOKUP(E81,Cadastros!$U$5:$AX$7,3,FALSE) -> 12
D82: =HLOOKUP(E82,Cadastros!$U$5:$AX$7,3,FALSE) -> 12 | F82: =HLOOKUP(E82,Cadastros!$U$5:$AX$7,3,FALSE) -> 12
D83: =HLOOKUP(E83,Cadastros!$U$5:$AX$7,3,FALSE) -> 12 | F83: =HLOOKUP(E83,Cadastros!$U$5:$AX$7,3,FALSE) -> 12
D84: =HLOOKUP(E84,Cadastros!$U$5:$AX$7,3,FALSE) -> 12 | F84: =HLOOKUP(E84,Cadastros!$U$5:$AX$7,3,FALSE) -> 12
D85: =HLOOKUP(E85,Cadastros!$U$5:$AX$7,3,FALSE) -> 12 | F85: =HLOOKUP(E85,Cadastros!$U$5:$AX$7,3,FALSE) -> 12
D86: =HLOOKUP(E86,Cadastros!$U$5:$AX$7,3,FALSE) -> 12 | F86: =HLOOKUP(E86,Cadastros!$U$5:$AX$7,3,FALSE) -> 12
D87: =HLOOKUP(E87,Cadastros!$U$5:$AX$7,3,FALSE) -> 12 | F87: =HLOOKUP(E87,Cadastros!$U$5:$AX$7,3,FALSE) -> 12
D88: =HLOOKUP(E88,Cadastros!$U$5:$AX$7,3,FALSE) -> 12 | F88: =HLOOKUP(E88,Cadastros!$U$5:$AX$7,3,FALSE) -> 12
D89: =HLOOKUP(E89,Cadastros!$U$5:$AX$7,3,FALSE) -> 12 | F89: =HLOOKUP(E89,Cadastros!$U$5:$AX$7,3,FALSE) -> 12
D90: =HLOOKUP(E90,Cadastros!$U$5:$AX$7,3,FALSE) -> 12 | F90: =HLOOKUP(E90,Cadastros!$U$5:$AX$7,3,FALSE) -> 12
D91: =HLOOKUP(E91,Cadastros!$U$5:$AX$7,3,FALSE) -> 12 | F91: =HLOOKUP(E91,Cadastros!$U$5:$AX$7,3,FALSE) -> 12
D92: =HLOOKUP(E92,Cadastros!$U$5:$AX$7,3,FALSE) -> 12 | F92: =HLOOKUP(E92,Cadastros!$U$5:$AX$7,3,FALSE) -> 12
D93: =HLOOKUP(E93,Cadastros!$U$5:$AX$7,3,FALSE) -> 12 | F93: =HLOOKUP(E93,Cadastros!$U$5:$AX$7,3,FALSE) -> 12
D94: =HLOOKUP(E94,Cadastros!$U$5:$AX$7,3,FALSE) -> 12 | F94: =HLOOKUP(E94,Cadastros!$U$5:$AX$7,3,FALSE) -> 12
D95: =HLOOKUP(E95,Cadastros!$U$5:$AX$7,3,FALSE) -> 12 | F95: =HLOOKUP(E95,Cadastros!$U$5:$AX$7,3,FALSE) -> 12
D96: =HLOOKUP(E96,Cadastros!$U$5:$AX$7,3,FALSE) -> 12 | F96: =HLOOKUP(E96,Cadastros!$U$5:$AX$7,3,FALSE) -> 12
D97: =HLOOKUP(E97,Cadastros!$U$5:$AX$7,3,FALSE) -> 12 | F97: =HLOOKUP(E97,Cadastros!$U$5:$AX$7,3,FALSE) -> 12
D98: =HLOOKUP(E98,Cadastros!$U$5:$AX$7,3,FALSE) -> 12 | F98: =HLOOKUP(E98,Cadastros!$U$5:$AX$7,3,FALSE) -> 12
D99: =HLOOKUP(E99,Cadastros!$U$5:$AX$7,3,FALSE) -> 12 | F99: =HLOOKUP(E99,Cadastros!$U$5:$AX$7,3,FALSE) -> 12
D100: =HLOOKUP(E100,Cadastros!$U$5:$AX$7,3,FALSE) -> 12 | F100: =HLOOKUP(E100,Cadastros!$U$5:$AX$7,3,FALSE) -> 12
D101: =HLOOKUP(E101,Cadastros!$U$5:$AX$7,3,FALSE) -> 12 | F101: =HLOOKUP(E101,Cadastros!$U$5:$AX$7,3,FALSE) -> 12
D102: =HLOOKUP(E102,Cadastros!$U$5:$AX$7,3,FALSE) -> 12 | F102: =HLOOKUP(E102,Cadastros!$U$5:$AX$7,3,FALSE) -> 12
D103: =HLOOKUP(E103,Cadastros!$U$5:$AX$7,3,FALSE) -> 12 | F103: =HLOOKUP(E103,Cadastros!$U$5:$AX$7,3,FALSE) -> 12
D104: =HLOOKUP(E104,Cadastros!$U$5:$AX$7,3,FALSE) -> 12 | F104: =HLOOKUP(E104,Cadastros!$U$5:$AX$7,3,FALSE) -> 12
D105: =HLOOKUP(E105,Cadastros!$U$5:$AX$7,3,FALSE) -> 12 | F105: =HLOOKUP(E105,Cadastros!$U$5:$AX$7,3,FALSE) -> 12
D106: =HLOOKUP(E106,Cadastros!$U$5:$AX$7,3,FALSE) -> 12 | F106: =HLOOKUP(E106,Cadastros!$U$5:$AX$7,3,FALSE) -> 12
D107: =HLOOKUP(E107,Cadastros!$U$5:$AX$7,3,FALSE) -> 12 | F107: =HLOOKUP(E107,Cadastros!$U$5:$AX$7,3,FALSE) -> 12
D108: =HLOOKUP(E108,Cadastros!$U$5:$AX$7,3,FALSE) -> 12 | F108: =HLOOKUP(E108,Cadastros!$U$5:$AX$7,3,FALSE) -> 12
D109: =HLOOKUP(E109,Cadastros!$U$5:$AX$7,3,FALSE) -> 12 | F109: =HLOOKUP(E109,Cadastros!$U$5:$AX$7,3,FALSE) -> 12
D110: =HLOOKUP(E110,Cadastros!$U$5:$AX$7,3,FALSE) -> 12 | F110: =HLOOKUP(E110,Cadastros!$U$5:$AX$7,3,FALSE) -> 12
D111: =HLOOKUP(E111,Cadastros!$U$5:$AX$7,3,FALSE) -> 12 | F111: =HLOOKUP(E111,Cadastros!$U$5:$AX$7,3,FALSE) -> 12
D112: =HLOOKUP(E112,Cadastros!$U$5:$AX$7,3,FALSE) -> 12 | F112: =HLOOKUP(E112,Cadastros!$U$5:$AX$7,3,FALSE) -> 12
D113: =HLOOKUP(E113,Cadastros!$U$5:$AX$7,3,FALSE) -> 12 | F113: =HLOOKUP(E113,Cadastros!$U$5:$AX$7,3,FALSE) -> 12
D114: =HLOOKUP(E114,Cadastros!$U$5:$AX$7,3,FALSE) -> 12 | F114: =HLOOKUP(E114,Cadastros!$U$5:$AX$7,3,FALSE) -> 12
D115: =HLOOKUP(E115,Cadastros!$U$5:$AX$7,3,FALSE) -> 12 | F115: =HLOOKUP(E115,Cadastros!$U$5:$AX$7,3,FALSE) -> 12
D116: =HLOOKUP(E116,Cadastros!$U$5:$AX$7,3,FALSE) -> 12 | F116: =HLOOKUP(E116,Cadastros!$U$5:$AX$7,3,FALSE) -> 12
D117: =HLOOKUP(E117,Cadastros!$U$5:$AX$7,3,FALSE) -> 12 | F117: =HLOOKUP(E117,Cadastros!$U$5:$AX$7,3,FALSE) -> 12
D118: =HLOOKUP(E118,Cadastros!$U$5:$AX$7,3,FALSE) -> 12 | F118: =HLOOKUP(E118,Cadastros!$U$5:$AX$7,3,FALSE) -> 12
D119: =HLOOKUP(E119,Cadastros!$U$5:$AX$7,3,FALSE) -> 12 | F119: =HLOOKUP(E119,Cadastros!$U$5:$AX$7,3,FALSE) -> 12
D120: =HLOOKUP(E120,Cadastros!$U$5:$AX$7,3,FALSE) -> 12 | F120: =HLOOKUP(E120,Cadastros!$U$5:$AX$7,3,FALSE) -> 12
D121: =HLOOKUP(E121,Cadastros!$U$5:$AX$7,3,FALSE) -> 12 | F121: =HLOOKUP(E121,Cadastros!$U$5:$AX$7,3,FALSE) -> 12
D122: =HLOOKUP(E122,Cadastros!$U$5:$AX$7,3,FALSE) -> 12 | F122: =HLOOKUP(E122,Cadastros!$U$5:$AX$7,3,FALSE) -> 12
D123: =HLOOKUP(E123,Cadastros!$U$5:$AX$7,3,FALSE) -> 12 | F123: =HLOOKUP(E123,Cadastros!$U$5:$AX$7,3,FALSE) -> 12
D124: =HLOOKUP(E124,Cadastros!$U$5:$AX$7,3,FALSE) -> 12 | F124: =HLOOKUP(E124,Cadastros!$U$5:$AX$7,3,FALSE) -> 12
D125: =HLOOKUP(E125,Cadastros!$U$5:$AX$7,3,FALSE) -> 12 | F125: =HLOOKUP(E125,Cadastros!$U$5:$AX$7,3,FALSE) -> 12
D126: =HLOOKUP(E126,Cadastros!$U$5:$AX$7,3,FALSE) -> 12 | F126: =HLOOKUP(E126,Cadastros!$U$5:$AX$7,3,FALSE) -> 12
D127: =HLOOKUP(E127,Cadastros!$U$5:$AX$7,3,FALSE) -> 12 | F127: =HLOOKUP(E127,Cadastros!$U$5:$AX$7,3,FALSE) -> 12
D128: =HLOOKUP(E128,Cadastros!$U$5:$AX$7,3,FALSE) -> 12 | F128: =HLOOKUP(E128,Cadastros!$U$5:$AX$7,3,FALSE) -> 12
D129: =HLOOKUP(E129,Cadastros!$U$5:$AX$7,3,FALSE) -> 12 | F129: =HLOOKUP(E129,Cadastros!$U$5:$AX$7,3,FALSE) -> 12
D130: =HLOOKUP(E130,Cadastros!$U$5:$AX$7,3,FALSE) -> 12 | F130: =HLOOKUP(E130,Cadastros!$U$5:$AX$7,3,FALSE) -> 12
D131: =HLOOKUP(E131,Cadastros!$U$5:$AX$7,3,FALSE) -> 12 | F131: =HLOOKUP(E131,Cadastros!$U$5:$AX$7,3,FALSE) -> 12
D132: =HLOOKUP(E132,Cadastros!$U$5:$AX$7,3,FALSE) -> 12 | F132: =HLOOKUP(E132,Cadastros!$U$5:$AX$7,3,FALSE) -> 12
D133: =HLOOKUP(E133,Cadastros!$U$5:$AX$7,3,FALSE) -> 12 | F133: =HLOOKUP(E133,Cadastros!$U$5:$AX$7,3,FALSE) -> 12
D134: =HLOOKUP(E134,Cadastros!$U$5:$AX$7,3,FALSE) -> 12 | F134: =HLOOKUP(E134,Cadastros!$U$5:$AX$7,3,FALSE) -> 12
D135: =HLOOKUP(E135,Cadastros!$U$5:$AX$7,3,FALSE) -> 12 | F135: =HLOOKUP(E135,Cadastros!$U$5:$AX$7,3,FALSE) -> 12 | J135: =IF(I135="","",I135/H135) -> 
D136: =HLOOKUP(E136,Cadastros!$U$5:$AX$7,3,FALSE) -> 12 | F136: =HLOOKUP(E136,Cadastros!$U$5:$AX$7,3,FALSE) -> 12
D137: =HLOOKUP(E137,Cadastros!$U$5:$AX$7,3,FALSE) -> 12 | F137: =HLOOKUP(E137,Cadastros!$U$5:$AX$7,3,FALSE) -> 12
D138: =HLOOKUP(E138,Cadastros!$U$5:$AX$7,3,FALSE) -> 12 | F138: =HLOOKUP(E138,Cadastros!$U$5:$AX$7,3,FALSE) -> 12
D139: =HLOOKUP(E139,Cadastros!$U$5:$AX$7,3,FALSE) -> 12 | F139: =HLOOKUP(E139,Cadastros!$U$5:$AX$7,3,FALSE) -> 12
D140: =HLOOKUP(E140,Cadastros!$U$5:$AX$7,3,FALSE) -> 12 | F140: =HLOOKUP(E140,Cadastros!$U$5:$AX$7,3,FALSE) -> 12
D141: =HLOOKUP(E141,Cadastros!$U$5:$AX$7,3,FALSE) -> 12 | F141: =HLOOKUP(E141,Cadastros!$U$5:$AX$7,3,FALSE) -> 12
D142: =HLOOKUP(E142,Cadastros!$U$5:$AX$7,3,FALSE) -> 12 | F142: =HLOOKUP(E142,Cadastros!$U$5:$AX$7,3,FALSE) -> 12
D143: =HLOOKUP(E143,Cadastros!$U$5:$AX$7,3,FALSE) -> 12 | F143: =HLOOKUP(E143,Cadastros!$U$5:$AX$7,3,FALSE) -> 12
D144: =HLOOKUP(E144,Cadastros!$U$5:$AX$7,3,FALSE) -> 12 | F144: =HLOOKUP(E144,Cadastros!$U$5:$AX$7,3,FALSE) -> 12
D145: =HLOOKUP(E145,Cadastros!$U$5:$AX$7,3,FALSE) -> 12 | F145: =HLOOKUP(E145,Cadastros!$U$5:$AX$7,3,FALSE) -> 12
D146: =HLOOKUP(E146,Cadastros!$U$5:$AX$7,3,FALSE) -> 12 | F146: =HLOOKUP(E146,Cadastros!$U$5:$AX$7,3,FALSE) -> 12
D147: =HLOOKUP(E147,Cadastros!$U$5:$AX$7,3,FALSE) -> 12 | F147: =HLOOKUP(E147,Cadastros!$U$5:$AX$7,3,FALSE) -> 12
D148: =HLOOKUP(E148,Cadastros!$U$5:$AX$7,3,FALSE) -> 12 | F148: =HLOOKUP(E148,Cadastros!$U$5:$AX$7,3,FALSE) -> 12
D149: =HLOOKUP(E149,Cadastros!$U$5:$AX$7,3,FALSE) -> 12 | F149: =HLOOKUP(E149,Cadastros!$U$5:$AX$7,3,FALSE) -> 12
D150: =HLOOKUP(E150,Cadastros!$U$5:$AX$7,3,FALSE) -> 12 | F150: =HLOOKUP(E150,Cadastros!$U$5:$AX$7,3,FALSE) -> 12
D151: =HLOOKUP(E151,Cadastros!$U$5:$AX$7,3,FALSE) -> 12 | F151: =HLOOKUP(E151,Cadastros!$U$5:$AX$7,3,FALSE) -> 12
D152: =HLOOKUP(E152,Cadastros!$U$5:$AX$7,3,FALSE) -> 12 | F152: =HLOOKUP(E152,Cadastros!$U$5:$AX$7,3,FALSE) -> 12
D153: =HLOOKUP(E153,Cadastros!$U$5:$AX$7,3,FALSE) -> 12 | F153: =HLOOKUP(E153,Cadastros!$U$5:$AX$7,3,FALSE) -> 12
D154: =HLOOKUP(E154,Cadastros!$U$5:$AX$7,3,FALSE) -> 12 | F154: =HLOOKUP(E154,Cadastros!$U$5:$AX$7,3,FALSE) -> 12
D155: =HLOOKUP(E155,Cadastros!$U$5:$AX$7,3,FALSE) -> 12 | F155: =HLOOKUP(E155,Cadastros!$U$5:$AX$7,3,FALSE) -> 12
D156: =HLOOKUP(E156,Cadastros!$U$5:$AX$7,3,FALSE) -> 12 | F156: =HLOOKUP(E156,Cadastros!$U$5:$AX$7,3,FALSE) -> 12
D157: =HLOOKUP(E157,Cadastros!$U$5:$AX$7,3,FALSE) -> 12 | F157: =HLOOKUP(E157,Cadastros!$U$5:$AX$7,3,FALSE) -> 12
D158: =HLOOKUP(E158,Cadastros!$U$5:$AX$7,3,FALSE) -> 12 | F158: =HLOOKUP(E158,Cadastros!$U$5:$AX$7,3,FALSE) -> 12
D159: =HLOOKUP(E159,Cadastros!$U$5:$AX$7,3,FALSE) -> 12 | F159: =HLOOKUP(E159,Cadastros!$U$5:$AX$7,3,FALSE) -> 12
D160: =HLOOKUP(E160,Cadastros!$U$5:$AX$7,3,FALSE) -> 12 | F160: =HLOOKUP(E160,Cadastros!$U$5:$AX$7,3,FALSE) -> 12
D161: =HLOOKUP(E161,Cadastros!$U$5:$AX$7,3,FALSE) -> 12 | F161: =HLOOKUP(E161,Cadastros!$U$5:$AX$7,3,FALSE) -> 12
D162: =HLOOKUP(E162,Cadastros!$U$5:$AX$7,3,FALSE) -> 12 | F162: =HLOOKUP(E162,Cadastros!$U$5:$AX$7,3,FALSE) -> 12
D163: =HLOOKUP(E163,Cadastros!$U$5:$AX$7,3,FALSE) -> 12 | F163: =HLOOKUP(E163,Cadastros!$U$5:$AX$7,3,FALSE) -> 12
D164: =HLOOKUP(E164,Cadastros!$U$5:$AX$7,3,FALSE) -> 12 | F164: =HLOOKUP(E164,Cadastros!$U$5:$AX$7,3,FALSE) -> 12
D165: =HLOOKUP(E165,Cadastros!$U$5:$AX$7,3,FALSE) -> 12 | F165: =HLOOKUP(E165,Cadastros!$U$5:$AX$7,3,FALSE) -> 12
D166: =HLOOKUP(E166,Cadastros!$U$5:$AX$7,3,FALSE) -> 12 | F166: =HLOOKUP(E166,Cadastros!$U$5:$AX$7,3,FALSE) -> 12
D167: =HLOOKUP(E167,Cadastros!$U$5:$AX$7,3,FALSE) -> 12 | F167: =HLOOKUP(E167,Cadastros!$U$5:$AX$7,3,FALSE) -> 12
D168: =HLOOKUP(E168,Cadastros!$U$5:$AX$7,3,FALSE) -> 12 | F168: =HLOOKUP(E168,Cadastros!$U$5:$AX$7,3,FALSE) -> 12
D169: =HLOOKUP(E169,Cadastros!$U$5:$AX$7,3,FALSE) -> 12 | F169: =HLOOKUP(E169,Cadastros!$U$5:$AX$7,3,FALSE) -> 12
D170: =HLOOKUP(E170,Cadastros!$U$5:$AX$7,3,FALSE) -> 12 | F170: =HLOOKUP(E170,Cadastros!$U$5:$AX$7,3,FALSE) -> 12
D171: =HLOOKUP(E171,Cadastros!$U$5:$AX$7,3,FALSE) -> 12 | F171: =HLOOKUP(E171,Cadastros!$U$5:$AX$7,3,FALSE) -> 12
D172: =HLOOKUP(E172,Cadastros!$U$5:$AX$7,3,FALSE) -> 12 | F172: =HLOOKUP(E172,Cadastros!$U$5:$AX$7,3,FALSE) -> 12
D173: =HLOOKUP(E173,Cadastros!$U$5:$AX$7,3,FALSE) -> 12 | F173: =HLOOKUP(E173,Cadastros!$U$5:$AX$7,3,FALSE) -> 12
D174: =HLOOKUP(E174,Cadastros!$U$5:$AX$7,3,FALSE) -> 12 | F174: =HLOOKUP(E174,Cadastros!$U$5:$AX$7,3,FALSE) -> 12
D175: =HLOOKUP(E175,Cadastros!$U$5:$AX$7,3,FALSE) -> 12 | F175: =HLOOKUP(E175,Cadastros!$U$5:$AX$7,3,FALSE) -> 12
D176: =HLOOKUP(E176,Cadastros!$U$5:$AX$7,3,FALSE) -> 12 | F176: =HLOOKUP(E176,Cadastros!$U$5:$AX$7,3,FALSE) -> 12
D177: =HLOOKUP(E177,Cadastros!$U$5:$AX$7,3,FALSE) -> 12 | F177: =HLOOKUP(E177,Cadastros!$U$5:$AX$7,3,FALSE) -> 12
D178: =HLOOKUP(E178,Cadastros!$U$5:$AX$7,3,FALSE) -> 12 | F178: =HLOOKUP(E178,Cadastros!$U$5:$AX$7,3,FALSE) -> 12
D179: =HLOOKUP(E179,Cadastros!$U$5:$AX$7,3,FALSE) -> 12 | F179: =HLOOKUP(E179,Cadastros!$U$5:$AX$7,3,FALSE) -> 12
D180: =HLOOKUP(E180,Cadastros!$U$5:$AX$7,3,FALSE) -> 12 | F180: =HLOOKUP(E180,Cadastros!$U$5:$AX$7,3,FALSE) -> 12
D181: =HLOOKUP(E181,Cadastros!$U$5:$AX$7,3,FALSE) -> 12 | F181: =HLOOKUP(E181,Cadastros!$U$5:$AX$7,3,FALSE) -> 12
D182: =HLOOKUP(E182,Cadastros!$U$5:$AX$7,3,FALSE) -> 12 | F182: =HLOOKUP(E182,Cadastros!$U$5:$AX$7,3,FALSE) -> 12
D183: =HLOOKUP(E183,Cadastros!$U$5:$AX$7,3,FALSE) -> 12 | F183: =HLOOKUP(E183,Cadastros!$U$5:$AX$7,3,FALSE) -> 12
D184: =HLOOKUP(E184,Cadastros!$U$5:$AX$7,3,FALSE) -> 12 | F184: =HLOOKUP(E184,Cadastros!$U$5:$AX$7,3,FALSE) -> 12
D185: =HLOOKUP(E185,Cadastros!$U$5:$AX$7,3,FALSE) -> 12 | F185: =HLOOKUP(E185,Cadastros!$U$5:$AX$7,3,FALSE) -> 12
D186: =HLOOKUP(E186,Cadastros!$U$5:$AX$7,3,FALSE) -> 12 | F186: =HLOOKUP(E186,Cadastros!$U$5:$AX$7,3,FALSE) -> 12
D187: =HLOOKUP(E187,Cadastros!$U$5:$AX$7,3,FALSE) -> 12 | F187: =HLOOKUP(E187,Cadastros!$U$5:$AX$7,3,FALSE) -> 12
D188: =HLOOKUP(E188,Cadastros!$U$5:$AX$7,3,FALSE) -> 12 | F188: =HLOOKUP(E188,Cadastros!$U$5:$AX$7,3,FALSE) -> 12
D189: =HLOOKUP(E189,Cadastros!$U$5:$AX$7,3,FALSE) -> 12 | F189: =HLOOKUP(E189,Cadastros!$U$5:$AX$7,3,FALSE) -> 12
D190: =HLOOKUP(E190,Cadastros!$U$5:$AX$7,3,FALSE) -> 12 | F190: =HLOOKUP(E190,Cadastros!$U$5:$AX$7,3,FALSE) -> 12
D191: =HLOOKUP(E191,Cadastros!$U$5:$AX$7,3,FALSE) -> 12 | F191: =HLOOKUP(E191,Cadastros!$U$5:$AX$7,3,FALSE) -> 12
D192: =HLOOKUP(E192,Cadastros!$U$5:$AX$7,3,FALSE) -> 12 | F192: =HLOOKUP(E192,Cadastros!$U$5:$AX$7,3,FALSE) -> 12
D193: =HLOOKUP(E193,Cadastros!$U$5:$AX$7,3,FALSE) -> 12 | F193: =HLOOKUP(E193,Cadastros!$U$5:$AX$7,3,FALSE) -> 12
D194: =HLOOKUP(E194,Cadastros!$U$5:$AX$7,3,FALSE) -> 12 | F194: =HLOOKUP(E194,Cadastros!$U$5:$AX$7,3,FALSE) -> 12
D195: =HLOOKUP(E195,Cadastros!$U$5:$AX$7,3,FALSE) -> 12 | F195: =HLOOKUP(E195,Cadastros!$U$5:$AX$7,3,FALSE) -> 12
D196: =HLOOKUP(E196,Cadastros!$U$5:$AX$7,3,FALSE) -> 12 | F196: =HLOOKUP(E196,Cadastros!$U$5:$AX$7,3,FALSE) -> 12
D197: =HLOOKUP(E197,Cadastros!$U$5:$AX$7,3,FALSE) -> 12 | F197: =HLOOKUP(E197,Cadastros!$U$5:$AX$7,3,FALSE) -> 12
D198: =HLOOKUP(E198,Cadastros!$U$5:$AX$7,3,FALSE) -> 12 | F198: =HLOOKUP(E198,Cadastros!$U$5:$AX$7,3,FALSE) -> 12
D199: =HLOOKUP(E199,Cadastros!$U$5:$AX$7,3,FALSE) -> 12 | F199: =HLOOKUP(E199,Cadastros!$U$5:$AX$7,3,FALSE) -> 12 | J199: =IF(I199="","",I199/H199) -> 
D200: =HLOOKUP(E200,Cadastros!$U$5:$AX$7,3,FALSE) -> 12 | F200: =HLOOKUP(E200,Cadastros!$U$5:$AX$7,3,FALSE) -> 12
D201: =HLOOKUP(E201,Cadastros!$U$5:$AX$7,3,FALSE) -> 12 | F201: =HLOOKUP(E201,Cadastros!$U$5:$AX$7,3,FALSE) -> 12
... 1307 more rows

Sheet Comparativo Acumulado Geral
A1: www.geraldcorelli.com
F2: R E L A T Ó R I O C O M P A R A T I V O C O M A R E C E I T A
F3: ="SOBRE O REALIZADO ACUMULADO ATÉ "&UPPER(TEXT(K6,"MMMM")) -> SOBRE O REALIZADO ACUMULADO ATÉ MAIO
C5: Escolha o Centro de Custos que representa as Receitas Operacionais: | I5: Acumular até o mês de:
G6: Receitas Operacionais | K6: 2011-05-01
C10: Grupo | D10: Flag1 | E10: Flag2 | H10: Valor | J10: %
C11: =G6&" acumuladas até "&TEXT(K6,"mmmm") -> Receitas Operacionais acumuladas até maio | H11: =SUMPRODUCT(('Entrada de Dados'!$B$7:$B$1508<=$K$6)*('Entrada de Dados'!$C$7:$C$1508=$G$6)*('Entrada de Dados'!$I$7:$I$1508)) -> 36500 | J11: =H11/$H$11 -> 1
C13: Grupo | D13: Flag1 | E13: Flag2 | F13: Conta | G13: Previsto | H13: Realizado | I13: P x R | J13: % s/ Rec. | K13: Total do Grupo | L13: % s/ Rec.
A14: =IF(H14="","",ROW()) -> 14 | B14: 1 | C14: =HLOOKUP(B14,Cadastros!$U$4:$AX$5,2,TRUE) -> 01 Imobilizado | D14: =HLOOKUP(C14,Cadastros!$U$5:$AX$7,3,FALSE) -> 1 | E14: =COUNTA($D$14:D14) -> 1 | F14: =HLOOKUP(D14,OFFSET(INDIRECT("Cadastros!$U$"&7,TRUE),,,52,1),E14+1,FALSE) -> Máquinas e Equipamentos | G14: =IF(F14="","",SUMPRODUCT(('Entrada de Dados'!$B$7:$B$1508<=$K$6)*('Entrada de Dados'!$G$7:$G$1508=F14)*('Entrada de Dados'!$H$7:$H$1508))) -> 0 | H14: =IF(F14="","",SUMPRODUCT(('Entrada de Dados'!$B$7:$B$1508<=$K$6)*('Entrada de Dados'!$G$7:$G$1508=F14)*('Entrada de Dados'!$I$7:$I$1508))) -> 0 | I14: =IF(H14="","",IF(H14=0,0,H14/G14)) -> 0 | J14: =IF(H14="","",H14/$H$11) -> 0 | K14: =IF(F14="","",IF(F15<>"","",SUMPRODUCT(--($D$14:$D$104=D14),($H$14:$H$104)))) -> 0 | L14: =IF(K14="","",K14/$H$11) -> 0
A15: =IF(H15="","",ROW()) ->  | B15: =IF(MAX($B$14:B14)=MAX(Cadastros!$U$4:$AQ$4),"",IF(D14="",MAX($B$14:B14)+1,IF(E14=HLOOKUP(D14,Cadastros!$U$4:$AQ$6,3,TRUE),"",""))) ->  | C15: =IF(B15="","",HLOOKUP(B15,Cadastros!$U$4:$AX$5,2,TRUE)) ->  | D15: =IF(D14="",B15,IF(E14>=HLOOKUP(D14,Cadastros!$U$4:$AQ$6,3,TRUE),"",IF(C15="",D14,HLOOKUP(C15,Cadastros!$U$5:$AX$7,2,FALSE)))) ->  | E15: =IF(D15="","",COUNTIF($D$14:D15,D15)) ->  | F15: =IF(D15="","",HLOOKUP(D15,OFFSET(INDIRECT("Cadastros!$U$"&7,TRUE),,,52,D15),E15+1,FALSE)) ->  | G15: =IF(F15="","",SUMPRODUCT(('Entrada de Dados'!$B$7:$B$1508<=$K$6)*('Entrada de Dados'!$G$7:$G$1508=F15)*('Entrada de Dados'!$H$7:$H$1508))) ->  | H15: =IF(F15="","",SUMPRODUCT(('Entrada de Dados'!$B$7:$B$1508<=$K$6)*('Entrada de Dados'!$G$7:$G$1508=F15)*('Entrada de Dados'!$I$7:$I$1508))) ->  | J15: =IF(H15="","",H15/$H$11) ->  | K15: =IF(F15="","",IF(F16<>"","",SUMPRODUCT(--($D$14:$D$104=D15),($H$14:$H$104)))) ->  | L15: =IF(K15="","",K15/$H$11) -> 
B16: =IF(MAX($B$14:B15)=MAX(Cadastros!$U$4:$AQ$4),"",IF(D15="",MAX($B$14:B15)+1,IF(E15=HLOOKUP(D15,Cadastros!$U$4:$AQ$6,3,TRUE),"",""))) -> 2 | C16: =IF(B16="","",HLOOKUP(B16,Cadastros!$U$4:$AX$5,2,TRUE)) -> 01 Investimentos | D16: =IF(D15="",B16,IF(E15>=HLOOKUP(D15,Cadastros!$U$4:$AQ$6,3,TRUE),"",IF(C16="",D15,HLOOKUP(C16,Cadastros!$U$5:$AX$7,2,FALSE)))) -> 2 | E16: =IF(D16="","",COUNTIF($D$14:D16,D16)) -> 1 | G16: =IF(F16="","",SUMPRODUCT(('Entrada de Dados'!$B$7:$B$1508<=$K$6)*('Entrada de Dados'!$G$7:$G$1508=F16)*('Entrada de Dados'!$H$7:$H$1508))) ->  | H16: =IF(F16="","",SUMPRODUCT(('Entrada de Dados'!$B$7:$B$1508<=$K$6)*('Entrada de Dados'!$G$7:$G$1508=F16)*('Entrada de Dados'!$I$7:$I$1508))) ->  | J16: =IF(H16="","",H16/$H$11) ->  | L16: =IF(K16="","",K16/$H$11) -> 
B17: =IF(MAX($B$14:B16)=MAX(Cadastros!$U$4:$AQ$4),"",IF(D16="",MAX($B$14:B16)+1,IF(E16=HLOOKUP(D16,Cadastros!$U$4:$AQ$6,3,TRUE),"",""))) ->  | C17: =IF(B17="","",HLOOKUP(B17,Cadastros!$U$4:$AX$5,2,TRUE)) ->  | D17: =IF(D16="",B17,IF(E16>=HLOOKUP(D16,Cadastros!$U$4:$AQ$6,3,TRUE),"",IF(C17="",D16,HLOOKUP(C17,Cadastros!$U$5:$AX$7,2,FALSE)))) ->  | E17: =IF(D17="","",COUNTIF($D$14:D17,D17)) ->  | F17: =IF(D17="","",HLOOKUP(D17,OFFSET(INDIRECT("Cadastros!$U$"&7,TRUE),,,52,D17),E17+1,FALSE)) ->  | G17: =IF(F17="","",SUMPRODUCT(('Entrada de Dados'!$B$7:$B$1508<=$K$6)*('Entrada de Dados'!$G$7:$G$1508=F17)*('Entrada de Dados'!$H$7:$H$1508))) ->  | H17: =IF(F17="","",SUMPRODUCT(('Entrada de Dados'!$B$7:$B$1508<=$K$6)*('Entrada de Dados'!$G$7:$G$1508=F17)*('Entrada de Dados'!$I$7:$I$1508))) ->  | I17: =IF(H17="","",IF(H17=0,0,H17/G17)) -> 
A18: 18 | B18: =IF(MAX($B$14:B17)=MAX(Cadastros!$U$4:$AQ$4),"",IF(D17="",MAX($B$14:B17)+1,IF(E17=HLOOKUP(D17,Cadastros!$U$4:$AQ$6,3,TRUE),"",""))) -> 3 | C18: =IF(B18="","",HLOOKUP(B18,Cadastros!$U$4:$AX$5,2,TRUE)) -> 02 Serviços | D18: =IF(D17="",B18,IF(E17>=HLOOKUP(D17,Cadastros!$U$4:$AQ$6,3,TRUE),"",IF(C18="",D17,HLOOKUP(C18,Cadastros!$U$5:$AX$7,2,FALSE)))) -> 3 | E18: =IF(D18="","",COUNTIF($D$14:D18,D18)) -> 1 | F18: =IF(D18="","",HLOOKUP(D18,OFFSET(INDIRECT("Cadastros!$U$"&7,TRUE),,,52,D18),E18+1,FALSE)) -> Consultoria | G18: =IF(F18="","",SUMPRODUCT(('Entrada de Dados'!$B$7:$B$1508<=$K$6)*('Entrada de Dados'!$G$7:$G$1508=F18)*('Entrada de Dados'!$H$7:$H$1508))) -> 0 | H18: =IF(F18="","",SUMPRODUCT(('Entrada de Dados'!$B$7:$B$1508<=$K$6)*('Entrada de Dados'!$G$7:$G$1508=F18)*('Entrada de Dados'!$I$7:$I$1508))) -> 0 | I18: =IF(H18="","",IF(H18=0,0,H18/G18)) -> 0 | J18: =IF(H18="","",H18/$H$11) -> 0 | L18: =IF(K18="","",K18/$H$11) -> 
A19: 19 | B19: =IF(MAX($B$14:B18)=MAX(Cadastros!$U$4:$AQ$4),"",IF(D18="",MAX($B$14:B18)+1,IF(E18=HLOOKUP(D18,Cadastros!$U$4:$AQ$6,3,TRUE),"",""))) ->  | C19: =IF(B19="","",HLOOKUP(B19,Cadastros!$U$4:$AX$5,2,TRUE)) ->  | D19: =IF(D18="",B19,IF(E18>=HLOOKUP(D18,Cadastros!$U$4:$AQ$6,3,TRUE),"",IF(C19="",D18,HLOOKUP(C19,Cadastros!$U$5:$AX$7,2,FALSE)))) -> 3 | E19: =IF(D19="","",COUNTIF($D$14:D19,D19)) -> 2 | F19: Manutenção | G19: =IF(F19="","",SUMPRODUCT(('Entrada de Dados'!$B$7:$B$1508<=$K$6)*('Entrada de Dados'!$G$7:$G$1508=F19)*('Entrada de Dados'!$H$7:$H$1508))) -> 0 | H19: =IF(F19="","",SUMPRODUCT(('Entrada de Dados'!$B$7:$B$1508<=$K$6)*('Entrada de Dados'!$G$7:$G$1508=F19)*('Entrada de Dados'!$I$7:$I$1508))) -> 0 | I19: 0 | J19: 0
A20: 20 | B20: =IF(MAX($B$14:B19)=MAX(Cadastros!$U$4:$AQ$4),"",IF(D19="",MAX($B$14:B19)+1,IF(E19=HLOOKUP(D19,Cadastros!$U$4:$AQ$6,3,TRUE),"",""))) ->  | C20: =IF(B20="","",HLOOKUP(B20,Cadastros!$U$4:$AX$5,2,TRUE)) ->  | D20: =IF(D19="",B20,IF(E19>=HLOOKUP(D19,Cadastros!$U$4:$AQ$6,3,TRUE),"",IF(C20="",D19,HLOOKUP(C20,Cadastros!$U$5:$AX$7,2,FALSE)))) -> 3 | E20: =IF(D20="","",COUNTIF($D$14:D20,D20)) -> 3 | F20: Operacionais | G20: =IF(F20="","",SUMPRODUCT(('Entrada de Dados'!$B$7:$B$1508<=$K$6)*('Entrada de Dados'!$G$7:$G$1508=F20)*('Entrada de Dados'!$H$7:$H$1508))) -> 0 | H20: =IF(F20="","",SUMPRODUCT(('Entrada de Dados'!$B$7:$B$1508<=$K$6)*('Entrada de Dados'!$G$7:$G$1508=F20)*('Entrada de Dados'!$I$7:$I$1508))) -> 0 | I20: 0 | J20: 0 | K20: 0 | L20: 0
B21: =IF(MAX($B$14:B20)=MAX(Cadastros!$U$4:$AQ$4),"",IF(D20="",MAX($B$14:B20)+1,IF(E20=HLOOKUP(D20,Cadastros!$U$4:$AQ$6,3,TRUE),"",""))) ->  | C21: =IF(B21="","",HLOOKUP(B21,Cadastros!$U$4:$AX$5,2,TRUE)) ->  | D21: =IF(D20="",B21,IF(E20>=HLOOKUP(D20,Cadastros!$U$4:$AQ$6,3,TRUE),"",IF(C21="",D20,HLOOKUP(C21,Cadastros!$U$5:$AX$7,2,FALSE)))) ->  | E21: =IF(D21="","",COUNTIF($D$14:D21,D21)) ->  | G21: =IF(F21="","",SUMPRODUCT(('Entrada de Dados'!$B$7:$B$1508<=$K$6)*('Entrada de Dados'!$G$7:$G$1508=F21)*('Entrada de Dados'!$H$7:$H$1508))) ->  | H21: =IF(F21="","",SUMPRODUCT(('Entrada de Dados'!$B$7:$B$1508<=$K$6)*('Entrada de Dados'!$G$7:$G$1508=F21)*('Entrada de Dados'!$I$7:$I$1508))) -> 
A22: 22 | B22: =IF(MAX($B$14:B21)=MAX(Cadastros!$U$4:$AQ$4),"",IF(D21="",MAX($B$14:B21)+1,IF(E21=HLOOKUP(D21,Cadastros!$U$4:$AQ$6,3,TRUE),"",""))) -> 4 | C22: =IF(B22="","",HLOOKUP(B22,Cadastros!$U$4:$AX$5,2,TRUE)) -> 02 Vendas | D22: =IF(D21="",B22,IF(E21>=HLOOKUP(D21,Cadastros!$U$4:$AQ$6,3,TRUE),"",IF(C22="",D21,HLOOKUP(C22,Cadastros!$U$5:$AX$7,2,FALSE)))) -> 4 | E22: =IF(D22="","",COUNTIF($D$14:D22,D22)) -> 1 | F22: Produto "A" | G22: =IF(F22="","",SUMPRODUCT(('Entrada de Dados'!$B$7:$B$1508<=$K$6)*('Entrada de Dados'!$G$7:$G$1508=F22)*('Entrada de Dados'!$H$7:$H$1508))) -> 75000 | H22: =IF(F22="","",SUMPRODUCT(('Entrada de Dados'!$B$7:$B$1508<=$K$6)*('Entrada de Dados'!$G$7:$G$1508=F22)*('Entrada de Dados'!$I$7:$I$1508))) -> 29000 | I22: 0.3866666667 | J22: 0.7945205479
A23: 23 | B23: =IF(MAX($B$14:B22)=MAX(Cadastros!$U$4:$AQ$4),"",IF(D22="",MAX($B$14:B22)+1,IF(E22=HLOOKUP(D22,Cadastros!$U$4:$AQ$6,3,TRUE),"",""))) ->  | C23: =IF(B23="","",HLOOKUP(B23,Cadastros!$U$4:$AX$5,2,TRUE)) ->  | D23: =IF(D22="",B23,IF(E22>=HLOOKUP(D22,Cadastros!$U$4:$AQ$6,3,TRUE),"",IF(C23="",D22,HLOOKUP(C23,Cadastros!$U$5:$AX$7,2,FALSE)))) -> 4 | E23: =IF(D23="","",COUNTIF($D$14:D23,D23)) -> 2 | F23: Produto "B" | G23: =IF(F23="","",SUMPRODUCT(('Entrada de Dados'!$B$7:$B$1508<=$K$6)*('Entrada de Dados'!$G$7:$G$1508=F23)*('Entrada de Dados'!$H$7:$H$1508))) -> 9000 | H23: =IF(F23="","",SUMPRODUCT(('Entrada de Dados'!$B$7:$B$1508<=$K$6)*('Entrada de Dados'!$G$7:$G$1508=F23)*('Entrada de Dados'!$I$7:$I$1508))) -> 7500 | I23: 0.8333333333 | J23: 0.2054794521
A24: 24 | B24: =IF(MAX($B$14:B23)=MAX(Cadastros!$U$4:$AQ$4),"",IF(D23="",MAX($B$14:B23)+1,IF(E23=HLOOKUP(D23,Cadastros!$U$4:$AQ$6,3,TRUE),"",""))) ->  | C24: =IF(B24="","",HLOOKUP(B24,Cadastros!$U$4:$AX$5,2,TRUE)) ->  | D24: =IF(D23="",B24,IF(E23>=HLOOKUP(D23,Cadastros!$U$4:$AQ$6,3,TRUE),"",IF(C24="",D23,HLOOKUP(C24,Cadastros!$U$5:$AX$7,2,FALSE)))) -> 4 | E24: =IF(D24="","",COUNTIF($D$14:D24,D24)) -> 3 | F24: Produto "C" | G24: =IF(F24="","",SUMPRODUCT(('Entrada de Dados'!$B$7:$B$1508<=$K$6)*('Entrada de Dados'!$G$7:$G$1508=F24)*('Entrada de Dados'!$H$7:$H$1508))) -> 0 | H24: =IF(F24="","",SUMPRODUCT(('Entrada de Dados'!$B$7:$B$1508<=$K$6)*('Entrada de Dados'!$G$7:$G$1508=F24)*('Entrada de Dados'!$I$7:$I$1508))) -> 0 | I24: 0 | J24: 0 | K24: 36500 | L24: 1
B25: =IF(MAX($B$14:B24)=MAX(Cadastros!$U$4:$AQ$4),"",IF(D24="",MAX($B$14:B24)+1,IF(E24=HLOOKUP(D24,Cadastros!$U$4:$AQ$6,3,TRUE),"",""))) ->  | C25: =IF(B25="","",HLOOKUP(B25,Cadastros!$U$4:$AX$5,2,TRUE)) ->  | D25: =IF(D24="",B25,IF(E24>=HLOOKUP(D24,Cadastros!$U$4:$AQ$6,3,TRUE),"",IF(C25="",D24,HLOOKUP(C25,Cadastros!$U$5:$AX$7,2,FALSE)))) ->  | E25: =IF(D25="","",COUNTIF($D$14:D25,D25)) ->  | G25: =IF(F25="","",SUMPRODUCT(('Entrada de Dados'!$B$7:$B$1508<=$K$6)*('Entrada de Dados'!$G$7:$G$1508=F25)*('Entrada de Dados'!$H$7:$H$1508))) ->  | H25: =IF(F25="","",SUMPRODUCT(('Entrada de Dados'!$B$7:$B$1508<=$K$6)*('Entrada de Dados'!$G$7:$G$1508=F25)*('Entrada de Dados'!$I$7:$I$1508))) -> 
A26: 26 | B26: =IF(MAX($B$14:B25)=MAX(Cadastros!$U$4:$AQ$4),"",IF(D25="",MAX($B$14:B25)+1,IF(E25=HLOOKUP(D25,Cadastros!$U$4:$AQ$6,3,TRUE),"",""))) -> 5 | C26: =IF(B26="","",HLOOKUP(B26,Cadastros!$U$4:$AX$5,2,TRUE)) -> 03 Administrativas | D26: =IF(D25="",B26,IF(E25>=HLOOKUP(D25,Cadastros!$U$4:$AQ$6,3,TRUE),"",IF(C26="",D25,HLOOKUP(C26,Cadastros!$U$5:$AX$7,2,FALSE)))) -> 5 | E26: =IF(D26="","",COUNTIF($D$14:D26,D26)) -> 1 | F26: =IF(D26="","",HLOOKUP(D26,OFFSET(INDIRECT("Cadastros!$U$"&7,TRUE),,,52,D26),E26+1,FALSE)) -> Informática | G26: =IF(F26="","",SUMPRODUCT(('Entrada de Dados'!$B$7:$B$1508<=$K$6)*('Entrada de Dados'!$G$7:$G$1508=F26)*('Entrada de Dados'!$H$7:$H$1508))) -> 4650 | H26: =IF(F26="","",SUMPRODUCT(('Entrada de Dados'!$B$7:$B$1508<=$K$6)*('Entrada de Dados'!$G$7:$G$1508=F26)*('Entrada de Dados'!$I$7:$I$1508))) -> 4150 | I26: 0.8924731183 | J26: =IF(H26="","",H26/$H$11) -> 0.1136986301 | L26: =IF(K26="","",K26/$H$11) -> 
A27: 27 | B27: =IF(MAX($B$14:B26)=MAX(Cadastros!$U$4:$AQ$4),"",IF(D26="",MAX($B$14:B26)+1,IF(E26=HLOOKUP(D26,Cadastros!$U$4:$AQ$6,3,TRUE),"",""))) ->  | C27: =IF(B27="","",HLOOKUP(B27,Cadastros!$U$4:$AX$5,2,TRUE)) ->  | D27: =IF(D26="",B27,IF(E26>=HLOOKUP(D26,Cadastros!$U$4:$AQ$6,3,TRUE),"",IF(C27="",D26,HLOOKUP(C27,Cadastros!$U$5:$AX$7,2,FALSE)))) -> 5 | E27: =IF(D27="","",COUNTIF($D$14:D27,D27)) -> 2 | F27: Matl. De Escritório | G27: =IF(F27="","",SUMPRODUCT(('Entrada de Dados'!$B$7:$B$1508<=$K$6)*('Entrada de Dados'!$G$7:$G$1508=F27)*('Entrada de Dados'!$H$7:$H$1508))) -> 1800 | H27: =IF(F27="","",SUMPRODUCT(('Entrada de Dados'!$B$7:$B$1508<=$K$6)*('Entrada de Dados'!$G$7:$G$1508=F27)*('Entrada de Dados'!$I$7:$I$1508))) -> 2458 | I27: 1.365555556 | J27: 0.06734246575
A28: 28 | B28: =IF(MAX($B$14:B27)=MAX(Cadastros!$U$4:$AQ$4),"",IF(D27="",MAX($B$14:B27)+1,IF(E27=HLOOKUP(D27,Cadastros!$U$4:$AQ$6,3,TRUE),"",""))) ->  | C28: =IF(B28="","",HLOOKUP(B28,Cadastros!$U$4:$AX$5,2,TRUE)) ->  | D28: =IF(D27="",B28,IF(E27>=HLOOKUP(D27,Cadastros!$U$4:$AQ$6,3,TRUE),"",IF(C28="",D27,HLOOKUP(C28,Cadastros!$U$5:$AX$7,2,FALSE)))) -> 5 | E28: =IF(D28="","",COUNTIF($D$14:D28,D28)) -> 3 | F28: =IF(D28="","",HLOOKUP(D28,OFFSET(INDIRECT("Cadastros!$U$"&7,TRUE),,,52,D28),E28+1,FALSE)) -> Salários | G28: =IF(F28="","",SUMPRODUCT(('Entrada de Dados'!$B$7:$B$1508<=$K$6)*('Entrada de Dados'!$G$7:$G$1508=F28)*('Entrada de Dados'!$H$7:$H$1508))) -> 1200 | H28: =IF(F28="","",SUMPRODUCT(('Entrada de Dados'!$B$7:$B$1508<=$K$6)*('Entrada de Dados'!$G$7:$G$1508=F28)*('Entrada de Dados'!$I$7:$I$1508))) -> 1000 | I28: 0.8333333333 | J28: =IF(H28="","",H28/$H$11) -> 0.02739726027 | K28: 7608 | L28: =IF(K28="","",K28/$H$11) -> 0.2084383562
B29: =IF(MAX($B$14:B28)=MAX(Cadastros!$U$4:$AQ$4),"",IF(D28="",MAX($B$14:B28)+1,IF(E28=HLOOKUP(D28,Cadastros!$U$4:$AQ$6,3,TRUE),"",""))) ->  | C29: =IF(B29="","",HLOOKUP(B29,Cadastros!$U$4:$AX$5,2,TRUE)) ->  | D29: =IF(D28="",B29,IF(E28>=HLOOKUP(D28,Cadastros!$U$4:$AQ$6,3,TRUE),"",IF(C29="",D28,HLOOKUP(C29,Cadastros!$U$5:$AX$7,2,FALSE)))) ->  | E29: =IF(D29="","",COUNTIF($D$14:D29,D29)) ->  | G29: =IF(F29="","",SUMPRODUCT(('Entrada de Dados'!$B$7:$B$1508<=$K$6)*('Entrada de Dados'!$G$7:$G$1508=F29)*('Entrada de Dados'!$H$7:$H$1508))) ->  | H29: =IF(F29="","",SUMPRODUCT(('Entrada de Dados'!$B$7:$B$1508<=$K$6)*('Entrada de Dados'!$G$7:$G$1508=F29)*('Entrada de Dados'!$I$7:$I$1508))) -> 
A30: 30 | B30: =IF(MAX($B$14:B29)=MAX(Cadastros!$U$4:$AQ$4),"",IF(D29="",MAX($B$14:B29)+1,IF(E29=HLOOKUP(D29,Cadastros!$U$4:$AQ$6,3,TRUE),"",""))) -> 6 | C30: =IF(B30="","",HLOOKUP(B30,Cadastros!$U$4:$AX$5,2,TRUE)) -> 03 Comunicações | D30: =IF(D29="",B30,IF(E29>=HLOOKUP(D29,Cadastros!$U$4:$AQ$6,3,TRUE),"",IF(C30="",D29,HLOOKUP(C30,Cadastros!$U$5:$AX$7,2,FALSE)))) -> 6 | E30: =IF(D30="","",COUNTIF($D$14:D30,D30)) -> 1 | F30: Celular | G30: =IF(F30="","",SUMPRODUCT(('Entrada de Dados'!$B$7:$B$1508<=$K$6)*('Entrada de Dados'!$G$7:$G$1508=F30)*('Entrada de Dados'!$H$7:$H$1508))) -> 0 | H30: =IF(F30="","",SUMPRODUCT(('Entrada de Dados'!$B$7:$B$1508<=$K$6)*('Entrada de Dados'!$G$7:$G$1508=F30)*('Entrada de Dados'!$I$7:$I$1508))) -> 0 | I30: 0 | J30: 0
A31: 31 | B31: =IF(MAX($B$14:B30)=MAX(Cadastros!$U$4:$AQ$4),"",IF(D30="",MAX($B$14:B30)+1,IF(E30=HLOOKUP(D30,Cadastros!$U$4:$AQ$6,3,TRUE),"",""))) ->  | C31: =IF(B31="","",HLOOKUP(B31,Cadastros!$U$4:$AX$5,2,TRUE)) ->  | D31: =IF(D30="",B31,IF(E30>=HLOOKUP(D30,Cadastros!$U$4:$AQ$6,3,TRUE),"",IF(C31="",D30,HLOOKUP(C31,Cadastros!$U$5:$AX$7,2,FALSE)))) -> 6 | E31: =IF(D31="","",COUNTIF($D$14:D31,D31)) -> 2 | F31: Internet | G31: =IF(F31="","",SUMPRODUCT(('Entrada de Dados'!$B$7:$B$1508<=$K$6)*('Entrada de Dados'!$G$7:$G$1508=F31)*('Entrada de Dados'!$H$7:$H$1508))) -> 500 | H31: =IF(F31="","",SUMPRODUCT(('Entrada de Dados'!$B$7:$B$1508<=$K$6)*('Entrada de Dados'!$G$7:$G$1508=F31)*('Entrada de Dados'!$I$7:$I$1508))) -> 450 | I31: 0.9 | J31: 0.01232876712
A32: 32 | B32: =IF(MAX($B$14:B31)=MAX(Cadastros!$U$4:$AQ$4),"",IF(D31="",MAX($B$14:B31)+1,IF(E31=HLOOKUP(D31,Cadastros!$U$4:$AQ$6,3,TRUE),"",""))) ->  | C32: =IF(B32="","",HLOOKUP(B32,Cadastros!$U$4:$AX$5,2,TRUE)) ->  | D32: =IF(D31="",B32,IF(E31>=HLOOKUP(D31,Cadastros!$U$4:$AQ$6,3,TRUE),"",IF(C32="",D31,HLOOKUP(C32,Cadastros!$U$5:$AX$7,2,FALSE)))) -> 6 | E32: =IF(D32="","",COUNTIF($D$14:D32,D32)) -> 3 | F32: Rádio - Nextel | G32: =IF(F32="","",SUMPRODUCT(('Entrada de Dados'!$B$7:$B$1508<=$K$6)*('Entrada de Dados'!$G$7:$G$1508=F32)*('Entrada de Dados'!$H$7:$H$1508))) -> 0 | H32: =IF(F32="","",SUMPRODUCT(('Entrada de Dados'!$B$7:$B$1508<=$K$6)*('Entrada de Dados'!$G$7:$G$1508=F32)*('Entrada de Dados'!$I$7:$I$1508))) -> 0 | I32: 0 | J32: 0
A33: 33 | B33: =IF(MAX($B$14:B32)=MAX(Cadastros!$U$4:$AQ$4),"",IF(D32="",MAX($B$14:B32)+1,IF(E32=HLOOKUP(D32,Cadastros!$U$4:$AQ$6,3,TRUE),"",""))) ->  | C33: =IF(B33="","",HLOOKUP(B33,Cadastros!$U$4:$AX$5,2,TRUE)) ->  | D33: =IF(D32="",B33,IF(E32>=HLOOKUP(D32,Cadastros!$U$4:$AQ$6,3,TRUE),"",IF(C33="",D32,HLOOKUP(C33,Cadastros!$U$5:$AX$7,2,FALSE)))) -> 6 | E33: =IF(D33="","",COUNTIF($D$14:D33,D33)) -> 4 | F33: Satélite | G33: =IF(F33="","",SUMPRODUCT(('Entrada de Dados'!$B$7:$B$1508<=$K$6)*('Entrada de Dados'!$G$7:$G$1508=F33)*('Entrada de Dados'!$H$7:$H$1508))) -> 0 | H33: =IF(F33="","",SUMPRODUCT(('Entrada de Dados'!$B$7:$B$1508<=$K$6)*('Entrada de Dados'!$G$7:$G$1508=F33)*('Entrada de Dados'!$I$7:$I$1508))) -> 0 | I33: 0 | J33: 0
A34: 34 | B34: =IF(MAX($B$14:B33)=MAX(Cadastros!$U$4:$AQ$4),"",IF(D33="",MAX($B$14:B33)+1,IF(E33=HLOOKUP(D33,Cadastros!$U$4:$AQ$6,3,TRUE),"",""))) ->  | C34: =IF(B34="","",HLOOKUP(B34,Cadastros!$U$4:$AX$5,2,TRUE)) ->  | D34: =IF(D33="",B34,IF(E33>=HLOOKUP(D33,Cadastros!$U$4:$AQ$6,3,TRUE),"",IF(C34="",D33,HLOOKUP(C34,Cadastros!$U$5:$AX$7,2,FALSE)))) -> 6 | E34: =IF(D34="","",COUNTIF($D$14:D34,D34)) -> 5 | F34: Telefones | G34: =IF(F34="","",SUMPRODUCT(('Entrada de Dados'!$B$7:$B$1508<=$K$6)*('Entrada de Dados'!$G$7:$G$1508=F34)*('Entrada de Dados'!$H$7:$H$1508))) -> 0 | H34: =IF(F34="","",SUMPRODUCT(('Entrada de Dados'!$B$7:$B$1508<=$K$6)*('Entrada de Dados'!$G$7:$G$1508=F34)*('Entrada de Dados'!$I$7:$I$1508))) -> 0 | I34: 0 | J34: 0 | K34: 450 | L34: 0.01232876712
B35: =IF(MAX($B$14:B34)=MAX(Cadastros!$U$4:$AQ$4),"",IF(D34="",MAX($B$14:B34)+1,IF(E34=HLOOKUP(D34,Cadastros!$U$4:$AQ$6,3,TRUE),"",""))) ->  | C35: =IF(B35="","",HLOOKUP(B35,Cadastros!$U$4:$AX$5,2,TRUE)) ->  | D35: =IF(D34="",B35,IF(E34>=HLOOKUP(D34,Cadastros!$U$4:$AQ$6,3,TRUE),"",IF(C35="",D34,HLOOKUP(C35,Cadastros!$U$5:$AX$7,2,FALSE)))) ->  | E35: =IF(D35="","",COUNTIF($D$14:D35,D35)) ->  | G35: =IF(F35="","",SUMPRODUCT(('Entrada de Dados'!$B$7:$B$1508<=$K$6)*('Entrada de Dados'!$G$7:$G$1508=F35)*('Entrada de Dados'!$H$7:$H$1508))) ->  | H35: =IF(F35="","",SUMPRODUCT(('Entrada de Dados'!$B$7:$B$1508<=$K$6)*('Entrada de Dados'!$G$7:$G$1508=F35)*('Entrada de Dados'!$I$7:$I$1508))) -> 
A36: 36 | B36: =IF(MAX($B$14:B35)=MAX(Cadastros!$U$4:$AQ$4),"",IF(D35="",MAX($B$14:B35)+1,IF(E35=HLOOKUP(D35,Cadastros!$U$4:$AQ$6,3,TRUE),"",""))) -> 7 | C36: =IF(B36="","",HLOOKUP(B36,Cadastros!$U$4:$AX$5,2,TRUE)) -> 03 Custos | D36: =IF(D35="",B36,IF(E35>=HLOOKUP(D35,Cadastros!$U$4:$AQ$6,3,TRUE),"",IF(C36="",D35,HLOOKUP(C36,Cadastros!$U$5:$AX$7,2,FALSE)))) -> 7 | E36: =IF(D36="","",COUNTIF($D$14:D36,D36)) -> 1 | F36: Embalagem | G36: =IF(F36="","",SUMPRODUCT(('Entrada de Dados'!$B$7:$B$1508<=$K$6)*('Entrada de Dados'!$G$7:$G$1508=F36)*('Entrada de Dados'!$H$7:$H$1508))) -> 0 | H36: =IF(F36="","",SUMPRODUCT(('Entrada de Dados'!$B$7:$B$1508<=$K$6)*('Entrada de Dados'!$G$7:$G$1508=F36)*('Entrada de Dados'!$I$7:$I$1508))) -> 0 | I36: 0 | J36: 0
A37: 37 | B37: =IF(MAX($B$14:B36)=MAX(Cadastros!$U$4:$AQ$4),"",IF(D36="",MAX($B$14:B36)+1,IF(E36=HLOOKUP(D36,Cadastros!$U$4:$AQ$6,3,TRUE),"",""))) ->  | C37: =IF(B37="","",HLOOKUP(B37,Cadastros!$U$4:$AX$5,2,TRUE)) ->  | D37: =IF(D36="",B37,IF(E36>=HLOOKUP(D36,Cadastros!$U$4:$AQ$6,3,TRUE),"",IF(C37="",D36,HLOOKUP(C37,Cadastros!$U$5:$AX$7,2,FALSE)))) -> 7 | E37: =IF(D37="","",COUNTIF($D$14:D37,D37)) -> 2 | F37: Energia Elétrica | G37: =IF(F37="","",SUMPRODUCT(('Entrada de Dados'!$B$7:$B$1508<=$K$6)*('Entrada de Dados'!$G$7:$G$1508=F37)*('Entrada de Dados'!$H$7:$H$1508))) -> 1950 | H37: =IF(F37="","",SUMPRODUCT(('Entrada de Dados'!$B$7:$B$1508<=$K$6)*('Entrada de Dados'!$G$7:$G$1508=F37)*('Entrada de Dados'!$I$7:$I$1508))) -> 1985 | I37: 1.017948718 | J37: 0.05438356164
A38: 38 | B38: =IF(MAX($B$14:B37)=MAX(Cadastros!$U$4:$AQ$4),"",IF(D37="",MAX($B$14:B37)+1,IF(E37=HLOOKUP(D37,Cadastros!$U$4:$AQ$6,3,TRUE),"",""))) ->  | C38: =IF(B38="","",HLOOKUP(B38,Cadastros!$U$4:$AX$5,2,TRUE)) ->  | D38: =IF(D37="",B38,IF(E37>=HLOOKUP(D37,Cadastros!$U$4:$AQ$6,3,TRUE),"",IF(C38="",D37,HLOOKUP(C38,Cadastros!$U$5:$AX$7,2,FALSE)))) -> 7 | E38: =IF(D38="","",COUNTIF($D$14:D38,D38)) -> 3 | F38: Mão de Obra | G38: =IF(F38="","",SUMPRODUCT(('Entrada de Dados'!$B$7:$B$1508<=$K$6)*('Entrada de Dados'!$G$7:$G$1508=F38)*('Entrada de Dados'!$H$7:$H$1508))) -> 2500 | H38: =IF(F38="","",SUMPRODUCT(('Entrada de Dados'!$B$7:$B$1508<=$K$6)*('Entrada de Dados'!$G$7:$G$1508=F38)*('Entrada de Dados'!$I$7:$I$1508))) -> 2500 | I38: 1 | J38: 0.06849315068
A39: 39 | B39: =IF(MAX($B$14:B38)=MAX(Cadastros!$U$4:$AQ$4),"",IF(D38="",MAX($B$14:B38)+1,IF(E38=HLOOKUP(D38,Cadastros!$U$4:$AQ$6,3,TRUE),"",""))) ->  | C39: =IF(B39="","",HLOOKUP(B39,Cadastros!$U$4:$AX$5,2,TRUE)) ->  | D39: =IF(D38="",B39,IF(E38>=HLOOKUP(D38,Cadastros!$U$4:$AQ$6,3,TRUE),"",IF(C39="",D38,HLOOKUP(C39,Cadastros!$U$5:$AX$7,2,FALSE)))) -> 7 | E39: =IF(D39="","",COUNTIF($D$14:D39,D39)) -> 4 | F39: Matéria Prima | G39: =IF(F39="","",SUMPRODUCT(('Entrada de Dados'!$B$7:$B$1508<=$K$6)*('Entrada de Dados'!$G$7:$G$1508=F39)*('Entrada de Dados'!$H$7:$H$1508))) -> 0 | H39: =IF(F39="","",SUMPRODUCT(('Entrada de Dados'!$B$7:$B$1508<=$K$6)*('Entrada de Dados'!$G$7:$G$1508=F39)*('Entrada de Dados'!$I$7:$I$1508))) -> 0 | I39: 0 | J39: 0 | K39: 4485 | L39: 0.1228767123
B40: =IF(MAX($B$14:B39)=MAX(Cadastros!$U$4:$AQ$4),"",IF(D39="",MAX($B$14:B39)+1,IF(E39=HLOOKUP(D39,Cadastros!$U$4:$AQ$6,3,TRUE),"",""))) ->  | C40: =IF(B40="","",HLOOKUP(B40,Cadastros!$U$4:$AX$5,2,TRUE)) ->  | D40: =IF(D39="",B40,IF(E39>=HLOOKUP(D39,Cadastros!$U$4:$AQ$6,3,TRUE),"",IF(C40="",D39,HLOOKUP(C40,Cadastros!$U$5:$AX$7,2,FALSE)))) ->  | E40: =IF(D40="","",COUNTIF($D$14:D40,D40)) ->  | G40: =IF(F40="","",SUMPRODUCT(('Entrada de Dados'!$B$7:$B$1508<=$K$6)*('Entrada de Dados'!$G$7:$G$1508=F40)*('Entrada de Dados'!$H$7:$H$1508))) ->  | H40: =IF(F40="","",SUMPRODUCT(('Entrada de Dados'!$B$7:$B$1508<=$K$6)*('Entrada de Dados'!$G$7:$G$1508=F40)*('Entrada de Dados'!$I$7:$I$1508))) -> 
A41: 41 | B41: =IF(MAX($B$14:B40)=MAX(Cadastros!$U$4:$AQ$4),"",IF(D40="",MAX($B$14:B40)+1,IF(E40=HLOOKUP(D40,Cadastros!$U$4:$AQ$6,3,TRUE),"",""))) -> 8 | C41: =IF(B41="","",HLOOKUP(B41,Cadastros!$U$4:$AX$5,2,TRUE)) -> 03 Desenvolvimento Organizacional (DO) | D41: =IF(D40="",B41,IF(E40>=HLOOKUP(D40,Cadastros!$U$4:$AQ$6,3,TRUE),"",IF(C41="",D40,HLOOKUP(C41,Cadastros!$U$5:$AX$7,2,FALSE)))) -> 8 | E41: =IF(D41="","",COUNTIF($D$14:D41,D41)) -> 1 | F41: Administrativos | G41: =IF(F41="","",SUMPRODUCT(('Entrada de Dados'!$B$7:$B$1508<=$K$6)*('Entrada de Dados'!$G$7:$G$1508=F41)*('Entrada de Dados'!$H$7:$H$1508))) -> 0 | H41: =IF(F41="","",SUMPRODUCT(('Entrada de Dados'!$B$7:$B$1508<=$K$6)*('Entrada de Dados'!$G$7:$G$1508=F41)*('Entrada de Dados'!$I$7:$I$1508))) -> 0 | I41: 0 | J41: 0
A42: 42 | B42: =IF(MAX($B$14:B41)=MAX(Cadastros!$U$4:$AQ$4),"",IF(D41="",MAX($B$14:B41)+1,IF(E41=HLOOKUP(D41,Cadastros!$U$4:$AQ$6,3,TRUE),"",""))) ->  | C42: =IF(B42="","",HLOOKUP(B42,Cadastros!$U$4:$AX$5,2,TRUE)) ->  | D42: =IF(D41="",B42,IF(E41>=HLOOKUP(D41,Cadastros!$U$4:$AQ$6,3,TRUE),"",IF(C42="",D41,HLOOKUP(C42,Cadastros!$U$5:$AX$7,2,FALSE)))) -> 8 | E42: =IF(D42="","",COUNTIF($D$14:D42,D42)) -> 2 | F42: Conultoria | G42: =IF(F42="","",SUMPRODUCT(('Entrada de Dados'!$B$7:$B$1508<=$K$6)*('Entrada de Dados'!$G$7:$G$1508=F42)*('Entrada de Dados'!$H$7:$H$1508))) -> 0 | H42: =IF(F42="","",SUMPRODUCT(('Entrada de Dados'!$B$7:$B$1508<=$K$6)*('Entrada de Dados'!$G$7:$G$1508=F42)*('Entrada de Dados'!$I$7:$I$1508))) -> 0 | I42: 0 | J42: 0
A43: 43 | B43: =IF(MAX($B$14:B42)=MAX(Cadastros!$U$4:$AQ$4),"",IF(D42="",MAX($B$14:B42)+1,IF(E42=HLOOKUP(D42,Cadastros!$U$4:$AQ$6,3,TRUE),"",""))) ->  | C43: =IF(B43="","",HLOOKUP(B43,Cadastros!$U$4:$AX$5,2,TRUE)) ->  | D43: =IF(D42="",B43,IF(E42>=HLOOKUP(D42,Cadastros!$U$4:$AQ$6,3,TRUE),"",IF(C43="",D42,HLOOKUP(C43,Cadastros!$U$5:$AX$7,2,FALSE)))) -> 8 | E43: =IF(D43="","",COUNTIF($D$14:D43,D43)) -> 3 | F43: Estudo de Cargos e Salários | G43: =IF(F43="","",SUMPRODUCT(('Entrada de Dados'!$B$7:$B$1508<=$K$6)*('Entrada de Dados'!$G$7:$G$1508=F43)*('Entrada de Dados'!$H$7:$H$1508))) -> 0 | H43: =IF(F43="","",SUMPRODUCT(('Entrada de Dados'!$B$7:$B$1508<=$K$6)*('Entrada de Dados'!$G$7:$G$1508=F43)*('Entrada de Dados'!$I$7:$I$1508))) -> 0 | I43: 0 | J43: 0
A44: 44 | B44: =IF(MAX($B$14:B43)=MAX(Cadastros!$U$4:$AQ$4),"",IF(D43="",MAX($B$14:B43)+1,IF(E43=HLOOKUP(D43,Cadastros!$U$4:$AQ$6,3,TRUE),"",""))) ->  | C44: =IF(B44="","",HLOOKUP(B44,Cadastros!$U$4:$AX$5,2,TRUE)) ->  | D44: =IF(D43="",B44,IF(E43>=HLOOKUP(D43,Cadastros!$U$4:$AQ$6,3,TRUE),"",IF(C44="",D43,HLOOKUP(C44,Cadastros!$U$5:$AX$7,2,FALSE)))) -> 8 | E44: =IF(D44="","",COUNTIF($D$14:D44,D44)) -> 4 | F44: Operacionais | G44: =IF(F44="","",SUMPRODUCT(('Entrada de Dados'!$B$7:$B$1508<=$K$6)*('Entrada de Dados'!$G$7:$G$1508=F44)*('Entrada de Dados'!$H$7:$H$1508))) -> 0 | H44: =IF(F44="","",SUMPRODUCT(('Entrada de Dados'!$B$7:$B$1508<=$K$6)*('Entrada de Dados'!$G$7:$G$1508=F44)*('Entrada de Dados'!$I$7:$I$1508))) -> 0 | I44: 0 | J44: 0
A45: 45 | B45: =IF(MAX($B$14:B44)=MAX(Cadastros!$U$4:$AQ$4),"",IF(D44="",MAX($B$14:B44)+1,IF(E44=HLOOKUP(D44,Cadastros!$U$4:$AQ$6,3,TRUE),"",""))) ->  | C45: =IF(B45="","",HLOOKUP(B45,Cadastros!$U$4:$AX$5,2,TRUE)) ->  | D45: =IF(D44="",B45,IF(E44>=HLOOKUP(D44,Cadastros!$U$4:$AQ$6,3,TRUE),"",IF(C45="",D44,HLOOKUP(C45,Cadastros!$U$5:$AX$7,2,FALSE)))) -> 8 | E45: =IF(D45="","",COUNTIF($D$14:D45,D45)) -> 5 | F45: Pesquisa de Clima | G45: =IF(F45="","",SUMPRODUCT(('Entrada de Dados'!$B$7:$B$1508<=$K$6)*('Entrada de Dados'!$G$7:$G$1508=F45)*('Entrada de Dados'!$H$7:$H$1508))) -> 0 | H45: =IF(F45="","",SUMPRODUCT(('Entrada de Dados'!$B$7:$B$1508<=$K$6)*('Entrada de Dados'!$G$7:$G$1508=F45)*('Entrada de Dados'!$I$7:$I$1508))) -> 0 | I45: 0 | J45: 0 | K45: 0 | L45: 0
B46: =IF(MAX($B$14:B45)=MAX(Cadastros!$U$4:$AQ$4),"",IF(D45="",MAX($B$14:B45)+1,IF(E45=HLOOKUP(D45,Cadastros!$U$4:$AQ$6,3,TRUE),"",""))) ->  | C46: =IF(B46="","",HLOOKUP(B46,Cadastros!$U$4:$AX$5,2,TRUE)) ->  | D46: =IF(D45="",B46,IF(E45>=HLOOKUP(D45,Cadastros!$U$4:$AQ$6,3,TRUE),"",IF(C46="",D45,HLOOKUP(C46,Cadastros!$U$5:$AX$7,2,FALSE)))) ->  | E46: =IF(D46="","",COUNTIF($D$14:D46,D46)) ->  | G46: =IF(F46="","",SUMPRODUCT(('Entrada de Dados'!$B$7:$B$1508<=$K$6)*('Entrada de Dados'!$G$7:$G$1508=F46)*('Entrada de Dados'!$H$7:$H$1508))) ->  | H46: =IF(F46="","",SUMPRODUCT(('Entrada de Dados'!$B$7:$B$1508<=$K$6)*('Entrada de Dados'!$G$7:$G$1508=F46)*('Entrada de Dados'!$I$7:$I$1508))) -> 
A47: 47 | B47: =IF(MAX($B$14:B46)=MAX(Cadastros!$U$4:$AQ$4),"",IF(D46="",MAX($B$14:B46)+1,IF(E46=HLOOKUP(D46,Cadastros!$U$4:$AQ$6,3,TRUE),"",""))) -> 9 | C47: =IF(B47="","",HLOOKUP(B47,Cadastros!$U$4:$AX$5,2,TRUE)) -> 03 Impostos | D47: =IF(D46="",B47,IF(E46>=HLOOKUP(D46,Cadastros!$U$4:$AQ$6,3,TRUE),"",IF(C47="",D46,HLOOKUP(C47,Cadastros!$U$5:$AX$7,2,FALSE)))) -> 9 | E47: =IF(D47="","",COUNTIF($D$14:D47,D47)) -> 1 | F47: ICMS s/ Vendas | G47: =IF(F47="","",SUMPRODUCT(('Entrada de Dados'!$B$7:$B$1508<=$K$6)*('Entrada de Dados'!$G$7:$G$1508=F47)*('Entrada de Dados'!$H$7:$H$1508))) -> 0 | H47: =IF(F47="","",SUMPRODUCT(('Entrada de Dados'!$B$7:$B$1508<=$K$6)*('Entrada de Dados'!$G$7:$G$1508=F47)*('Entrada de Dados'!$I$7:$I$1508))) -> 0 | I47: 0 | J47: 0 | K47: =IF(F47="","",IF(F48<>"","",SUMPRODUCT(--($D$14:$D$104=D47),($H$14:$H$104)))) -> 0 | L47: 0
B48: =IF(MAX($B$14:B47)=MAX(Cadastros!$U$4:$AQ$4),"",IF(D47="",MAX($B$14:B47)+1,IF(E47=HLOOKUP(D47,Cadastros!$U$4:$AQ$6,3,TRUE),"",""))) ->  | C48: =IF(B48="","",HLOOKUP(B48,Cadastros!$U$4:$AX$5,2,TRUE)) ->  | D48: =IF(D47="",B48,IF(E47>=HLOOKUP(D47,Cadastros!$U$4:$AQ$6,3,TRUE),"",IF(C48="",D47,HLOOKUP(C48,Cadastros!$U$5:$AX$7,2,FALSE)))) ->  | E48: =IF(D48="","",COUNTIF($D$14:D48,D48)) ->  | G48: =IF(F48="","",SUMPRODUCT(('Entrada de Dados'!$B$7:$B$1508<=$K$6)*('Entrada de Dados'!$G$7:$G$1508=F48)*('Entrada de Dados'!$H$7:$H$1508))) ->  | H48: =IF(F48="","",SUMPRODUCT(('Entrada de Dados'!$B$7:$B$1508<=$K$6)*('Entrada de Dados'!$G$7:$G$1508=F48)*('Entrada de Dados'!$I$7:$I$1508))) -> 
A49: 49 | B49: =IF(MAX($B$14:B48)=MAX(Cadastros!$U$4:$AQ$4),"",IF(D48="",MAX($B$14:B48)+1,IF(E48=HLOOKUP(D48,Cadastros!$U$4:$AQ$6,3,TRUE),"",""))) -> 10 | C49: =IF(B49="","",HLOOKUP(B49,Cadastros!$U$4:$AX$5,2,TRUE)) -> 03 Infraestrutura | D49: =IF(D48="",B49,IF(E48>=HLOOKUP(D48,Cadastros!$U$4:$AQ$6,3,TRUE),"",IF(C49="",D48,HLOOKUP(C49,Cadastros!$U$5:$AX$7,2,FALSE)))) -> 10 | E49: =IF(D49="","",COUNTIF($D$14:D49,D49)) -> 1 | F49: Água e Esgoto | G49: =IF(F49="","",SUMPRODUCT(('Entrada de Dados'!$B$7:$B$1508<=$K$6)*('Entrada de Dados'!$G$7:$G$1508=F49)*('Entrada de Dados'!$H$7:$H$1508))) -> 1350 | H49: =IF(F49="","",SUMPRODUCT(('Entrada de Dados'!$B$7:$B$1508<=$K$6)*('Entrada de Dados'!$G$7:$G$1508=F49)*('Entrada de Dados'!$I$7:$I$1508))) -> 1205 | I49: 0.8925925926 | J49: 0.03301369863
A50: 50 | B50: =IF(MAX($B$14:B49)=MAX(Cadastros!$U$4:$AQ$4),"",IF(D49="",MAX($B$14:B49)+1,IF(E49=HLOOKUP(D49,Cadastros!$U$4:$AQ$6,3,TRUE),"",""))) ->  | C50: =IF(B50="","",HLOOKUP(B50,Cadastros!$U$4:$AX$5,2,TRUE)) ->  | D50: =IF(D49="",B50,IF(E49>=HLOOKUP(D49,Cadastros!$U$4:$AQ$6,3,TRUE),"",IF(C50="",D49,HLOOKUP(C50,Cadastros!$U$5:$AX$7,2,FALSE)))) -> 10 | E50: =IF(D50="","",COUNTIF($D$14:D50,D50)) -> 2 | F50: Energia Elétrica | G50: =IF(F50="","",SUMPRODUCT(('Entrada de Dados'!$B$7:$B$1508<=$K$6)*('Entrada de Dados'!$G$7:$G$1508=F50)*('Entrada de Dados'!$H$7:$H$1508))) -> 1950 | H50: =IF(F50="","",SUMPRODUCT(('Entrada de Dados'!$B$7:$B$1508<=$K$6)*('Entrada de Dados'!$G$7:$G$1508=F50)*('Entrada de Dados'!$I$7:$I$1508))) -> 1985 | I50: 1.017948718 | J50: 0.05438356164
A51: 51 | B51: =IF(MAX($B$14:B50)=MAX(Cadastros!$U$4:$AQ$4),"",IF(D50="",MAX($B$14:B50)+1,IF(E50=HLOOKUP(D50,Cadastros!$U$4:$AQ$6,3,TRUE),"",""))) ->  | C51: =IF(B51="","",HLOOKUP(B51,Cadastros!$U$4:$AX$5,2,TRUE)) ->  | D51: =IF(D50="",B51,IF(E50>=HLOOKUP(D50,Cadastros!$U$4:$AQ$6,3,TRUE),"",IF(C51="",D50,HLOOKUP(C51,Cadastros!$U$5:$AX$7,2,FALSE)))) -> 10 | E51: =IF(D51="","",COUNTIF($D$14:D51,D51)) -> 3 | F51: Manutenção Predial | G51: =IF(F51="","",SUMPRODUCT(('Entrada de Dados'!$B$7:$B$1508<=$K$6)*('Entrada de Dados'!$G$7:$G$1508=F51)*('Entrada de Dados'!$H$7:$H$1508))) -> 1050 | H51: =IF(F51="","",SUMPRODUCT(('Entrada de Dados'!$B$7:$B$1508<=$K$6)*('Entrada de Dados'!$G$7:$G$1508=F51)*('Entrada de Dados'!$I$7:$I$1508))) -> 820 | I51: 0.780952381 | J51: 0.02246575342 | K51: 4010 | L51: 0.1098630137
B52: =IF(MAX($B$14:B51)=MAX(Cadastros!$U$4:$AQ$4),"",IF(D51="",MAX($B$14:B51)+1,IF(E51=HLOOKUP(D51,Cadastros!$U$4:$AQ$6,3,TRUE),"",""))) ->  | C52: =IF(B52="","",HLOOKUP(B52,Cadastros!$U$4:$AX$5,2,TRUE)) ->  | D52: =IF(D51="",B52,IF(E51>=HLOOKUP(D51,Cadastros!$U$4:$AQ$6,3,TRUE),"",IF(C52="",D51,HLOOKUP(C52,Cadastros!$U$5:$AX$7,2,FALSE)))) ->  | E52: =IF(D52="","",COUNTIF($D$14:D52,D52)) ->  | G52: =IF(F52="","",SUMPRODUCT(('Entrada de Dados'!$B$7:$B$1508<=$K$6)*('Entrada de Dados'!$G$7:$G$1508=F52)*('Entrada de Dados'!$H$7:$H$1508))) ->  | H52: =IF(F52="","",SUMPRODUCT(('Entrada de Dados'!$B$7:$B$1508<=$K$6)*('Entrada de Dados'!$G$7:$G$1508=F52)*('Entrada de Dados'!$I$7:$I$1508))) -> 
A53: 53 | B53: =IF(MAX($B$14:B52)=MAX(Cadastros!$U$4:$AQ$4),"",IF(D52="",MAX($B$14:B52)+1,IF(E52=HLOOKUP(D52,Cadastros!$U$4:$AQ$6,3,TRUE),"",""))) -> 11 | C53: =IF(B53="","",HLOOKUP(B53,Cadastros!$U$4:$AX$5,2,TRUE)) -> 03 Treinamentos | D53: =IF(D52="",B53,IF(E52>=HLOOKUP(D52,Cadastros!$U$4:$AQ$6,3,TRUE),"",IF(C53="",D52,HLOOKUP(C53,Cadastros!$U$5:$AX$7,2,FALSE)))) -> 11 | E53: =IF(D53="","",COUNTIF($D$14:D53,D53)) -> 1 | F53: Informática | G53: =IF(F53="","",SUMPRODUCT(('Entrada de Dados'!$B$7:$B$1508<=$K$6)*('Entrada de Dados'!$G$7:$G$1508=F53)*('Entrada de Dados'!$H$7:$H$1508))) -> 4650 | H53: =IF(F53="","",SUMPRODUCT(('Entrada de Dados'!$B$7:$B$1508<=$K$6)*('Entrada de Dados'!$G$7:$G$1508=F53)*('Entrada de Dados'!$I$7:$I$1508))) -> 4150 | I53: 0.8924731183 | J53: 0.1136986301
A54: 54 | B54: =IF(MAX($B$14:B53)=MAX(Cadastros!$U$4:$AQ$4),"",IF(D53="",MAX($B$14:B53)+1,IF(E53=HLOOKUP(D53,Cadastros!$U$4:$AQ$6,3,TRUE),"",""))) ->  | C54: =IF(B54="","",HLOOKUP(B54,Cadastros!$U$4:$AX$5,2,TRUE)) ->  | D54: =IF(D53="",B54,IF(E53>=HLOOKUP(D53,Cadastros!$U$4:$AQ$6,3,TRUE),"",IF(C54="",D53,HLOOKUP(C54,Cadastros!$U$5:$AX$7,2,FALSE)))) -> 11 | E54: =IF(D54="","",COUNTIF($D$14:D54,D54)) -> 2 | F54: Inglês in company | G54: =IF(F54="","",SUMPRODUCT(('Entrada de Dados'!$B$7:$B$1508<=$K$6)*('Entrada de Dados'!$G$7:$G$1508=F54)*('Entrada de Dados'!$H$7:$H$1508))) -> 6000 | H54: =IF(F54="","",SUMPRODUCT(('Entrada de Dados'!$B$7:$B$1508<=$K$6)*('Entrada de Dados'!$G$7:$G$1508=F54)*('Entrada de Dados'!$I$7:$I$1508))) -> 6000 | I54: 1 | J54: 0.1643835616 | K54: 10150 | L54: 0.2780821918
B55: =IF(MAX($B$14:B54)=MAX(Cadastros!$U$4:$AQ$4),"",IF(D54="",MAX($B$14:B54)+1,IF(E54=HLOOKUP(D54,Cadastros!$U$4:$AQ$6,3,TRUE),"",""))) ->  | C55: =IF(B55="","",HLOOKUP(B55,Cadastros!$U$4:$AX$5,2,TRUE)) ->  | D55: =IF(D54="",B55,IF(E54>=HLOOKUP(D54,Cadastros!$U$4:$AQ$6,3,TRUE),"",IF(C55="",D54,HLOOKUP(C55,Cadastros!$U$5:$AX$7,2,FALSE)))) ->  | E55: =IF(D55="","",COUNTIF($D$14:D55,D55)) ->  | G55: =IF(F55="","",SUMPRODUCT(('Entrada de Dados'!$B$7:$B$1508<=$K$6)*('Entrada de Dados'!$G$7:$G$1508=F55)*('Entrada de Dados'!$H$7:$H$1508))) ->  | H55: =IF(F55="","",SUMPRODUCT(('Entrada de Dados'!$B$7:$B$1508<=$K$6)*('Entrada de Dados'!$G$7:$G$1508=F55)*('Entrada de Dados'!$I$7:$I$1508))) -> 
B56: =IF(MAX($B$14:B55)=MAX(Cadastros!$U$4:$AQ$4),"",IF(D55="",MAX($B$14:B55)+1,IF(E55=HLOOKUP(D55,Cadastros!$U$4:$AQ$6,3,TRUE),"",""))) ->  | C56: =IF(B56="","",HLOOKUP(B56,Cadastros!$U$4:$AX$5,2,TRUE)) ->  | D56: =IF(D55="",B56,IF(E55>=HLOOKUP(D55,Cadastros!$U$4:$AQ$6,3,TRUE),"",IF(C56="",D55,HLOOKUP(C56,Cadastros!$U$5:$AX$7,2,FALSE)))) ->  | E56: =IF(D56="","",COUNTIF($D$14:D56,D56)) ->  | G56: =IF(F56="","",SUMPRODUCT(('Entrada de Dados'!$B$7:$B$1508<=$K$6)*('Entrada de Dados'!$G$7:$G$1508=F56)*('Entrada de Dados'!$H$7:$H$1508))) ->  | H56: =IF(F56="","",SUMPRODUCT(('Entrada de Dados'!$B$7:$B$1508<=$K$6)*('Entrada de Dados'!$G$7:$G$1508=F56)*('Entrada de Dados'!$I$7:$I$1508))) -> 
B57: =IF(MAX($B$14:B56)=MAX(Cadastros!$U$4:$AQ$4),"",IF(D56="",MAX($B$14:B56)+1,IF(E56=HLOOKUP(D56,Cadastros!$U$4:$AQ$6,3,TRUE),"",""))) ->  | C57: =IF(B57="","",HLOOKUP(B57,Cadastros!$U$4:$AX$5,2,TRUE)) ->  | D57: =IF(D56="",B57,IF(E56>=HLOOKUP(D56,Cadastros!$U$4:$AQ$6,3,TRUE),"",IF(C57="",D56,HLOOKUP(C57,Cadastros!$U$5:$AX$7,2,FALSE)))) ->  | E57: =IF(D57="","",COUNTIF($D$14:D57,D57)) ->  | G57: =IF(F57="","",SUMPRODUCT(('Entrada de Dados'!$B$7:$B$1508<=$K$6)*('Entrada de Dados'!$G$7:$G$1508=F57)*('Entrada de Dados'!$H$7:$H$1508))) ->  | H57: =IF(F57="","",SUMPRODUCT(('Entrada de Dados'!$B$7:$B$1508<=$K$6)*('Entrada de Dados'!$G$7:$G$1508=F57)*('Entrada de Dados'!$I$7:$I$1508))) -> 
B58: =IF(MAX($B$14:B57)=MAX(Cadastros!$U$4:$AQ$4),"",IF(D57="",MAX($B$14:B57)+1,IF(E57=HLOOKUP(D57,Cadastros!$U$4:$AQ$6,3,TRUE),"",""))) ->  | C58: =IF(B58="","",HLOOKUP(B58,Cadastros!$U$4:$AX$5,2,TRUE)) ->  | D58: =IF(D57="",B58,IF(E57>=HLOOKUP(D57,Cadastros!$U$4:$AQ$6,3,TRUE),"",IF(C58="",D57,HLOOKUP(C58,Cadastros!$U$5:$AX$7,2,FALSE)))) ->  | E58: =IF(D58="","",COUNTIF($D$14:D58,D58)) ->  | G58: =IF(F58="","",SUMPRODUCT(('Entrada de Dados'!$B$7:$B$1508<=$K$6)*('Entrada de Dados'!$G$7:$G$1508=F58)*('Entrada de Dados'!$H$7:$H$1508))) ->  | H58: =IF(F58="","",SUMPRODUCT(('Entrada de Dados'!$B$7:$B$1508<=$K$6)*('Entrada de Dados'!$G$7:$G$1508=F58)*('Entrada de Dados'!$I$7:$I$1508))) -> 
B59: =IF(MAX($B$14:B58)=MAX(Cadastros!$U$4:$AQ$4),"",IF(D58="",MAX($B$14:B58)+1,IF(E58=HLOOKUP(D58,Cadastros!$U$4:$AQ$6,3,TRUE),"",""))) ->  | C59: =IF(B59="","",HLOOKUP(B59,Cadastros!$U$4:$AX$5,2,TRUE)) ->  | D59: =IF(D58="",B59,IF(E58>=HLOOKUP(D58,Cadastros!$U$4:$AQ$6,3,TRUE),"",IF(C59="",D58,HLOOKUP(C59,Cadastros!$U$5:$AX$7,2,FALSE)))) ->  | E59: =IF(D59="","",COUNTIF($D$14:D59,D59)) ->  | G59: =IF(F59="","",SUMPRODUCT(('Entrada de Dados'!$B$7:$B$1508<=$K$6)*('Entrada de Dados'!$G$7:$G$1508=F59)*('Entrada de Dados'!$H$7:$H$1508))) ->  | H59: =IF(F59="","",SUMPRODUCT(('Entrada de Dados'!$B$7:$B$1508<=$K$6)*('Entrada de Dados'!$G$7:$G$1508=F59)*('Entrada de Dados'!$I$7:$I$1508))) -> 
B60: =IF(MAX($B$14:B59)=MAX(Cadastros!$U$4:$AQ$4),"",IF(D59="",MAX($B$14:B59)+1,IF(E59=HLOOKUP(D59,Cadastros!$U$4:$AQ$6,3,TRUE),"",""))) ->  | C60: =IF(B60="","",HLOOKUP(B60,Cadastros!$U$4:$AX$5,2,TRUE)) ->  | D60: =IF(D59="",B60,IF(E59>=HLOOKUP(D59,Cadastros!$U$4:$AQ$6,3,TRUE),"",IF(C60="",D59,HLOOKUP(C60,Cadastros!$U$5:$AX$7,2,FALSE)))) ->  | E60: =IF(D60="","",COUNTIF($D$14:D60,D60)) ->  | G60: =IF(F60="","",SUMPRODUCT(('Entrada de Dados'!$B$7:$B$1508<=$K$6)*('Entrada de Dados'!$G$7:$G$1508=F60)*('Entrada de Dados'!$H$7:$H$1508))) ->  | H60: =IF(F60="","",SUMPRODUCT(('Entrada de Dados'!$B$7:$B$1508<=$K$6)*('Entrada de Dados'!$G$7:$G$1508=F60)*('Entrada de Dados'!$I$7:$I$1508))) -> 
B61: =IF(MAX($B$14:B60)=MAX(Cadastros!$U$4:$AQ$4),"",IF(D60="",MAX($B$14:B60)+1,IF(E60=HLOOKUP(D60,Cadastros!$U$4:$AQ$6,3,TRUE),"",""))) ->  | C61: =IF(B61="","",HLOOKUP(B61,Cadastros!$U$4:$AX$5,2,TRUE)) ->  | D61: =IF(D60="",B61,IF(E60>=HLOOKUP(D60,Cadastros!$U$4:$AQ$6,3,TRUE),"",IF(C61="",D60,HLOOKUP(C61,Cadastros!$U$5:$AX$7,2,FALSE)))) ->  | E61: =IF(D61="","",COUNTIF($D$14:D61,D61)) ->  | G61: =IF(F61="","",SUMPRODUCT(('Entrada de Dados'!$B$7:$B$1508<=$K$6)*('Entrada de Dados'!$G$7:$G$1508=F61)*('Entrada de Dados'!$H$7:$H$1508))) ->  | H61: =IF(F61="","",SUMPRODUCT(('Entrada de Dados'!$B$7:$B$1508<=$K$6)*('Entrada de Dados'!$G$7:$G$1508=F61)*('Entrada de Dados'!$I$7:$I$1508))) -> 
B62: =IF(MAX($B$14:B61)=MAX(Cadastros!$U$4:$AQ$4),"",IF(D61="",MAX($B$14:B61)+1,IF(E61=HLOOKUP(D61,Cadastros!$U$4:$AQ$6,3,TRUE),"",""))) ->  | C62: =IF(B62="","",HLOOKUP(B62,Cadastros!$U$4:$AX$5,2,TRUE)) ->  | D62: =IF(D61="",B62,IF(E61>=HLOOKUP(D61,Cadastros!$U$4:$AQ$6,3,TRUE),"",IF(C62="",D61,HLOOKUP(C62,Cadastros!$U$5:$AX$7,2,FALSE)))) ->  | E62: =IF(D62="","",COUNTIF($D$14:D62,D62)) ->  | G62: =IF(F62="","",SUMPRODUCT(('Entrada de Dados'!$B$7:$B$1508<=$K$6)*('Entrada de Dados'!$G$7:$G$1508=F62)*('Entrada de Dados'!$H$7:$H$1508))) ->  | H62: =IF(F62="","",SUMPRODUCT(('Entrada de Dados'!$B$7:$B$1508<=$K$6)*('Entrada de Dados'!$G$7:$G$1508=F62)*('Entrada de Dados'!$I$7:$I$1508))) -> 
B63: =IF(MAX($B$14:B62)=MAX(Cadastros!$U$4:$AQ$4),"",IF(D62="",MAX($B$14:B62)+1,IF(E62=HLOOKUP(D62,Cadastros!$U$4:$AQ$6,3,TRUE),"",""))) ->  | C63: =IF(B63="","",HLOOKUP(B63,Cadastros!$U$4:$AX$5,2,TRUE)) ->  | D63: =IF(D62="",B63,IF(E62>=HLOOKUP(D62,Cadastros!$U$4:$AQ$6,3,TRUE),"",IF(C63="",D62,HLOOKUP(C63,Cadastros!$U$5:$AX$7,2,FALSE)))) ->  | E63: =IF(D63="","",COUNTIF($D$14:D63,D63)) ->  | G63: =IF(F63="","",SUMPRODUCT(('Entrada de Dados'!$B$7:$B$1508<=$K$6)*('Entrada de Dados'!$G$7:$G$1508=F63)*('Entrada de Dados'!$H$7:$H$1508))) ->  | H63: =IF(F63="","",SUMPRODUCT(('Entrada de Dados'!$B$7:$B$1508<=$K$6)*('Entrada de Dados'!$G$7:$G$1508=F63)*('Entrada de Dados'!$I$7:$I$1508))) -> 
B64: =IF(MAX($B$14:B63)=MAX(Cadastros!$U$4:$AQ$4),"",IF(D63="",MAX($B$14:B63)+1,IF(E63=HLOOKUP(D63,Cadastros!$U$4:$AQ$6,3,TRUE),"",""))) ->  | C64: =IF(B64="","",HLOOKUP(B64,Cadastros!$U$4:$AX$5,2,TRUE)) ->  | D64: =IF(D63="",B64,IF(E63>=HLOOKUP(D63,Cadastros!$U$4:$AQ$6,3,TRUE),"",IF(C64="",D63,HLOOKUP(C64,Cadastros!$U$5:$AX$7,2,FALSE)))) ->  | E64: =IF(D64="","",COUNTIF($D$14:D64,D64)) ->  | G64: =IF(F64="","",SUMPRODUCT(('Entrada de Dados'!$B$7:$B$1508<=$K$6)*('Entrada de Dados'!$G$7:$G$1508=F64)*('Entrada de Dados'!$H$7:$H$1508))) ->  | H64: =IF(F64="","",SUMPRODUCT(('Entrada de Dados'!$B$7:$B$1508<=$K$6)*('Entrada de Dados'!$G$7:$G$1508=F64)*('Entrada de Dados'!$I$7:$I$1508))) -> 
B65: =IF(MAX($B$14:B64)=MAX(Cadastros!$U$4:$AQ$4),"",IF(D64="",MAX($B$14:B64)+1,IF(E64=HLOOKUP(D64,Cadastros!$U$4:$AQ$6,3,TRUE),"",""))) ->  | C65: =IF(B65="","",HLOOKUP(B65,Cadastros!$U$4:$AX$5,2,TRUE)) ->  | D65: =IF(D64="",B65,IF(E64>=HLOOKUP(D64,Cadastros!$U$4:$AQ$6,3,TRUE),"",IF(C65="",D64,HLOOKUP(C65,Cadastros!$U$5:$AX$7,2,FALSE)))) ->  | E65: =IF(D65="","",COUNTIF($D$14:D65,D65)) ->  | G65: =IF(F65="","",SUMPRODUCT(('Entrada de Dados'!$B$7:$B$1508<=$K$6)*('Entrada de Dados'!$G$7:$G$1508=F65)*('Entrada de Dados'!$H$7:$H$1508))) ->  | H65: =IF(F65="","",SUMPRODUCT(('Entrada de Dados'!$B$7:$B$1508<=$K$6)*('Entrada de Dados'!$G$7:$G$1508=F65)*('Entrada de Dados'!$I$7:$I$1508))) -> 
B66: =IF(MAX($B$14:B65)=MAX(Cadastros!$U$4:$AQ$4),"",IF(D65="",MAX($B$14:B65)+1,IF(E65=HLOOKUP(D65,Cadastros!$U$4:$AQ$6,3,TRUE),"",""))) ->  | C66: =IF(B66="","",HLOOKUP(B66,Cadastros!$U$4:$AX$5,2,TRUE)) ->  | D66: =IF(D65="",B66,IF(E65>=HLOOKUP(D65,Cadastros!$U$4:$AQ$6,3,TRUE),"",IF(C66="",D65,HLOOKUP(C66,Cadastros!$U$5:$AX$7,2,FALSE)))) ->  | E66: =IF(D66="","",COUNTIF($D$14:D66,D66)) ->  | G66: =IF(F66="","",SUMPRODUCT(('Entrada de Dados'!$B$7:$B$1508<=$K$6)*('Entrada de Dados'!$G$7:$G$1508=F66)*('Entrada de Dados'!$H$7:$H$1508))) ->  | H66: =IF(F66="","",SUMPRODUCT(('Entrada de Dados'!$B$7:$B$1508<=$K$6)*('Entrada de Dados'!$G$7:$G$1508=F66)*('Entrada de Dados'!$I$7:$I$1508))) -> 
B67: =IF(MAX($B$14:B66)=MAX(Cadastros!$U$4:$AQ$4),"",IF(D66="",MAX($B$14:B66)+1,IF(E66=HLOOKUP(D66,Cadastros!$U$4:$AQ$6,3,TRUE),"",""))) ->  | C67: =IF(B67="","",HLOOKUP(B67,Cadastros!$U$4:$AX$5,2,TRUE)) ->  | D67: =IF(D66="",B67,IF(E66>=HLOOKUP(D66,Cadastros!$U$4:$AQ$6,3,TRUE),"",IF(C67="",D66,HLOOKUP(C67,Cadastros!$U$5:$AX$7,2,FALSE)))) ->  | E67: =IF(D67="","",COUNTIF($D$14:D67,D67)) ->  | G67: =IF(F67="","",SUMPRODUCT(('Entrada de Dados'!$B$7:$B$1508<=$K$6)*('Entrada de Dados'!$G$7:$G$1508=F67)*('Entrada de Dados'!$H$7:$H$1508))) ->  | H67: =IF(F67="","",SUMPRODUCT(('Entrada de Dados'!$B$7:$B$1508<=$K$6)*('Entrada de Dados'!$G$7:$G$1508=F67)*('Entrada de Dados'!$I$7:$I$1508))) -> 
B68: =IF(MAX($B$14:B67)=MAX(Cadastros!$U$4:$AQ$4),"",IF(D67="",MAX($B$14:B67)+1,IF(E67=HLOOKUP(D67,Cadastros!$U$4:$AQ$6,3,TRUE),"",""))) ->  | C68: =IF(B68="","",HLOOKUP(B68,Cadastros!$U$4:$AX$5,2,TRUE)) ->  | D68: =IF(D67="",B68,IF(E67>=HLOOKUP(D67,Cadastros!$U$4:$AQ$6,3,TRUE),"",IF(C68="",D67,HLOOKUP(C68,Cadastros!$U$5:$AX$7,2,FALSE)))) ->  | E68: =IF(D68="","",COUNTIF($D$14:D68,D68)) ->  | G68: =IF(F68="","",SUMPRODUCT(('Entrada de Dados'!$B$7:$B$1508<=$K$6)*('Entrada de Dados'!$G$7:$G$1508=F68)*('Entrada de Dados'!$H$7:$H$1508))) ->  | H68: =IF(F68="","",SUMPRODUCT(('Entrada de Dados'!$B$7:$B$1508<=$K$6)*('Entrada de Dados'!$G$7:$G$1508=F68)*('Entrada de Dados'!$I$7:$I$1508))) -> 
B69: =IF(MAX($B$14:B68)=MAX(Cadastros!$U$4:$AQ$4),"",IF(D68="",MAX($B$14:B68)+1,IF(E68=HLOOKUP(D68,Cadastros!$U$4:$AQ$6,3,TRUE),"",""))) ->  | C69: =IF(B69="","",HLOOKUP(B69,Cadastros!$U$4:$AX$5,2,TRUE)) ->  | D69: =IF(D68="",B69,IF(E68>=HLOOKUP(D68,Cadastros!$U$4:$AQ$6,3,TRUE),"",IF(C69="",D68,HLOOKUP(C69,Cadastros!$U$5:$AX$7,2,FALSE)))) ->  | E69: =IF(D69="","",COUNTIF($D$14:D69,D69)) ->  | G69: =IF(F69="","",SUMPRODUCT(('Entrada de Dados'!$B$7:$B$1508<=$K$6)*('Entrada de Dados'!$G$7:$G$1508=F69)*('Entrada de Dados'!$H$7:$H$1508))) ->  | H69: =IF(F69="","",SUMPRODUCT(('Entrada de Dados'!$B$7:$B$1508<=$K$6)*('Entrada de Dados'!$G$7:$G$1508=F69)*('Entrada de Dados'!$I$7:$I$1508))) -> 
B70: =IF(MAX($B$14:B69)=MAX(Cadastros!$U$4:$AQ$4),"",IF(D69="",MAX($B$14:B69)+1,IF(E69=HLOOKUP(D69,Cadastros!$U$4:$AQ$6,3,TRUE),"",""))) ->  | C70: =IF(B70="","",HLOOKUP(B70,Cadastros!$U$4:$AX$5,2,TRUE)) ->  | D70: =IF(D69="",B70,IF(E69>=HLOOKUP(D69,Cadastros!$U$4:$AQ$6,3,TRUE),"",IF(C70="",D69,HLOOKUP(C70,Cadastros!$U$5:$AX$7,2,FALSE)))) ->  | E70: =IF(D70="","",COUNTIF($D$14:D70,D70)) ->  | G70: =IF(F70="","",SUMPRODUCT(('Entrada de Dados'!$B$7:$B$1508<=$K$6)*('Entrada de Dados'!$G$7:$G$1508=F70)*('Entrada de Dados'!$H$7:$H$1508))) ->  | H70: =IF(F70="","",SUMPRODUCT(('Entrada de Dados'!$B$7:$B$1508<=$K$6)*('Entrada de Dados'!$G$7:$G$1508=F70)*('Entrada de Dados'!$I$7:$I$1508))) -> 
B71: =IF(MAX($B$14:B70)=MAX(Cadastros!$U$4:$AQ$4),"",IF(D70="",MAX($B$14:B70)+1,IF(E70=HLOOKUP(D70,Cadastros!$U$4:$AQ$6,3,TRUE),"",""))) ->  | C71: =IF(B71="","",HLOOKUP(B71,Cadastros!$U$4:$AX$5,2,TRUE)) ->  | D71: =IF(D70="",B71,IF(E70>=HLOOKUP(D70,Cadastros!$U$4:$AQ$6,3,TRUE),"",IF(C71="",D70,HLOOKUP(C71,Cadastros!$U$5:$AX$7,2,FALSE)))) ->  | E71: =IF(D71="","",COUNTIF($D$14:D71,D71)) ->  | G71: =IF(F71="","",SUMPRODUCT(('Entrada de Dados'!$B$7:$B$1508<=$K$6)*('Entrada de Dados'!$G$7:$G$1508=F71)*('Entrada de Dados'!$H$7:$H$1508))) ->  | H71: =IF(F71="","",SUMPRODUCT(('Entrada de Dados'!$B$7:$B$1508<=$K$6)*('Entrada de Dados'!$G$7:$G$1508=F71)*('Entrada de Dados'!$I$7:$I$1508))) -> 
B72: =IF(MAX($B$14:B71)=MAX(Cadastros!$U$4:$AQ$4),"",IF(D71="",MAX($B$14:B71)+1,IF(E71=HLOOKUP(D71,Cadastros!$U$4:$AQ$6,3,TRUE),"",""))) ->  | C72: =IF(B72="","",HLOOKUP(B72,Cadastros!$U$4:$AX$5,2,TRUE)) ->  | D72: =IF(D71="",B72,IF(E71>=HLOOKUP(D71,Cadastros!$U$4:$AQ$6,3,TRUE),"",IF(C72="",D71,HLOOKUP(C72,Cadastros!$U$5:$AX$7,2,FALSE)))) ->  | E72: =IF(D72="","",COUNTIF($D$14:D72,D72)) ->  | G72: =IF(F72="","",SUMPRODUCT(('Entrada de Dados'!$B$7:$B$1508<=$K$6)*('Entrada de Dados'!$G$7:$G$1508=F72)*('Entrada de Dados'!$H$7:$H$1508))) ->  | H72: =IF(F72="","",SUMPRODUCT(('Entrada de Dados'!$B$7:$B$1508<=$K$6)*('Entrada de Dados'!$G$7:$G$1508=F72)*('Entrada de Dados'!$I$7:$I$1508))) -> 
B73: =IF(MAX($B$14:B72)=MAX(Cadastros!$U$4:$AQ$4),"",IF(D72="",MAX($B$14:B72)+1,IF(E72=HLOOKUP(D72,Cadastros!$U$4:$AQ$6,3,TRUE),"",""))) ->  | C73: =IF(B73="","",HLOOKUP(B73,Cadastros!$U$4:$AX$5,2,TRUE)) ->  | D73: =IF(D72="",B73,IF(E72>=HLOOKUP(D72,Cadastros!$U$4:$AQ$6,3,TRUE),"",IF(C73="",D72,HLOOKUP(C73,Cadastros!$U$5:$AX$7,2,FALSE)))) ->  | E73: =IF(D73="","",COUNTIF($D$14:D73,D73)) ->  | G73: =IF(F73="","",SUMPRODUCT(('Entrada de Dados'!$B$7:$B$1508<=$K$6)*('Entrada de Dados'!$G$7:$G$1508=F73)*('Entrada de Dados'!$H$7:$H$1508))) ->  | H73: =IF(F73="","",SUMPRODUCT(('Entrada de Dados'!$B$7:$B$1508<=$K$6)*('Entrada de Dados'!$G$7:$G$1508=F73)*('Entrada de Dados'!$I$7:$I$1508))) -> 
B74: =IF(MAX($B$14:B73)=MAX(Cadastros!$U$4:$AQ$4),"",IF(D73="",MAX($B$14:B73)+1,IF(E73=HLOOKUP(D73,Cadastros!$U$4:$AQ$6,3,TRUE),"",""))) ->  | C74: =IF(B74="","",HLOOKUP(B74,Cadastros!$U$4:$AX$5,2,TRUE)) ->  | D74: =IF(D73="",B74,IF(E73>=HLOOKUP(D73,Cadastros!$U$4:$AQ$6,3,TRUE),"",IF(C74="",D73,HLOOKUP(C74,Cadastros!$U$5:$AX$7,2,FALSE)))) ->  | E74: =IF(D74="","",COUNTIF($D$14:D74,D74)) ->  | G74: =IF(F74="","",SUMPRODUCT(('Entrada de Dados'!$B$7:$B$1508<=$K$6)*('Entrada de Dados'!$G$7:$G$1508=F74)*('Entrada de Dados'!$H$7:$H$1508))) ->  | H74: =IF(F74="","",SUMPRODUCT(('Entrada de Dados'!$B$7:$B$1508<=$K$6)*('Entrada de Dados'!$G$7:$G$1508=F74)*('Entrada de Dados'!$I$7:$I$1508))) -> 
B75: =IF(MAX($B$14:B74)=MAX(Cadastros!$U$4:$AQ$4),"",IF(D74="",MAX($B$14:B74)+1,IF(E74=HLOOKUP(D74,Cadastros!$U$4:$AQ$6,3,TRUE),"",""))) ->  | C75: =IF(B75="","",HLOOKUP(B75,Cadastros!$U$4:$AX$5,2,TRUE)) ->  | D75: =IF(D74="",B75,IF(E74>=HLOOKUP(D74,Cadastros!$U$4:$AQ$6,3,TRUE),"",IF(C75="",D74,HLOOKUP(C75,Cadastros!$U$5:$AX$7,2,FALSE)))) ->  | E75: =IF(D75="","",COUNTIF($D$14:D75,D75)) ->  | G75: =IF(F75="","",SUMPRODUCT(('Entrada de Dados'!$B$7:$B$1508<=$K$6)*('Entrada de Dados'!$G$7:$G$1508=F75)*('Entrada de Dados'!$H$7:$H$1508))) ->  | H75: =IF(F75="","",SUMPRODUCT(('Entrada de Dados'!$B$7:$B$1508<=$K$6)*('Entrada de Dados'!$G$7:$G$1508=F75)*('Entrada de Dados'!$I$7:$I$1508))) -> 
B76: =IF(MAX($B$14:B75)=MAX(Cadastros!$U$4:$AQ$4),"",IF(D75="",MAX($B$14:B75)+1,IF(E75=HLOOKUP(D75,Cadastros!$U$4:$AQ$6,3,TRUE),"",""))) ->  | C76: =IF(B76="","",HLOOKUP(B76,Cadastros!$U$4:$AX$5,2,TRUE)) ->  | D76: =IF(D75="",B76,IF(E75>=HLOOKUP(D75,Cadastros!$U$4:$AQ$6,3,TRUE),"",IF(C76="",D75,HLOOKUP(C76,Cadastros!$U$5:$AX$7,2,FALSE)))) ->  | E76: =IF(D76="","",COUNTIF($D$14:D76,D76)) ->  | G76: =IF(F76="","",SUMPRODUCT(('Entrada de Dados'!$B$7:$B$1508<=$K$6)*('Entrada de Dados'!$G$7:$G$1508=F76)*('Entrada de Dados'!$H$7:$H$1508))) ->  | H76: =IF(F76="","",SUMPRODUCT(('Entrada de Dados'!$B$7:$B$1508<=$K$6)*('Entrada de Dados'!$G$7:$G$1508=F76)*('Entrada de Dados'!$I$7:$I$1508))) -> 
B77: =IF(MAX($B$14:B76)=MAX(Cadastros!$U$4:$AQ$4),"",IF(D76="",MAX($B$14:B76)+1,IF(E76=HLOOKUP(D76,Cadastros!$U$4:$AQ$6,3,TRUE),"",""))) ->  | C77: =IF(B77="","",HLOOKUP(B77,Cadastros!$U$4:$AX$5,2,TRUE)) ->  | D77: =IF(D76="",B77,IF(E76>=HLOOKUP(D76,Cadastros!$U$4:$AQ$6,3,TRUE),"",IF(C77="",D76,HLOOKUP(C77,Cadastros!$U$5:$AX$7,2,FALSE)))) ->  | E77: =IF(D77="","",COUNTIF($D$14:D77,D77)) ->  | G77: =IF(F77="","",SUMPRODUCT(('Entrada de Dados'!$B$7:$B$1508<=$K$6)*('Entrada de Dados'!$G$7:$G$1508=F77)*('Entrada de Dados'!$H$7:$H$1508))) ->  | H77: =IF(F77="","",SUMPRODUCT(('Entrada de Dados'!$B$7:$B$1508<=$K$6)*('Entrada de Dados'!$G$7:$G$1508=F77)*('Entrada de Dados'!$I$7:$I$1508))) -> 
B78: =IF(MAX($B$14:B77)=MAX(Cadastros!$U$4:$AQ$4),"",IF(D77="",MAX($B$14:B77)+1,IF(E77=HLOOKUP(D77,Cadastros!$U$4:$AQ$6,3,TRUE),"",""))) ->  | C78: =IF(B78="","",HLOOKUP(B78,Cadastros!$U$4:$AX$5,2,TRUE)) ->  | D78: =IF(D77="",B78,IF(E77>=HLOOKUP(D77,Cadastros!$U$4:$AQ$6,3,TRUE),"",IF(C78="",D77,HLOOKUP(C78,Cadastros!$U$5:$AX$7,2,FALSE)))) ->  | E78: =IF(D78="","",COUNTIF($D$14:D78,D78)) ->  | G78: =IF(F78="","",SUMPRODUCT(('Entrada de Dados'!$B$7:$B$1508<=$K$6)*('Entrada de Dados'!$G$7:$G$1508=F78)*('Entrada de Dados'!$H$7:$H$1508))) ->  | H78: =IF(F78="","",SUMPRODUCT(('Entrada de Dados'!$B$7:$B$1508<=$K$6)*('Entrada de Dados'!$G$7:$G$1508=F78)*('Entrada de Dados'!$I$7:$I$1508))) -> 
A79: =IF(H79="","",ROW()) ->  | B79: =IF(MAX($B$14:B78)=MAX(Cadastros!$U$4:$AQ$4),"",IF(D78="",MAX($B$14:B78)+1,IF(E78=HLOOKUP(D78,Cadastros!$U$4:$AQ$6,3,TRUE),"",""))) ->  | C79: =IF(B79="","",HLOOKUP(B79,Cadastros!$U$4:$AX$5,2,TRUE)) ->  | D79: =IF(D78="",B79,IF(E78>=HLOOKUP(D78,Cadastros!$U$4:$AQ$6,3,TRUE),"",IF(C79="",D78,HLOOKUP(C79,Cadastros!$U$5:$AX$7,2,FALSE)))) ->  | E79: =IF(D79="","",COUNTIF($D$14:D79,D79)) ->  | G79: =IF(F79="","",SUMPRODUCT(('Entrada de Dados'!$B$7:$B$1508<=$K$6)*('Entrada de Dados'!$G$7:$G$1508=F79)*('Entrada de Dados'!$H$7:$H$1508))) ->  | H79: =IF(F79="","",SUMPRODUCT(('Entrada de Dados'!$B$7:$B$1508<=$K$6)*('Entrada de Dados'!$G$7:$G$1508=F79)*('Entrada de Dados'!$I$7:$I$1508))) ->  | K79: =IF(F79="","",IF(F80<>"","",SUMPRODUCT(--($D$14:$D$104=D79),($H$14:$H$104)))) -> 
B80: =IF(MAX($B$14:B79)=MAX(Cadastros!$U$4:$AQ$4),"",IF(D79="",MAX($B$14:B79)+1,IF(E79=HLOOKUP(D79,Cadastros!$U$4:$AQ$6,3,TRUE),"",""))) ->  | C80: =IF(B80="","",HLOOKUP(B80,Cadastros!$U$4:$AX$5,2,TRUE)) ->  | D80: =IF(D79="",B80,IF(E79>=HLOOKUP(D79,Cadastros!$U$4:$AQ$6,3,TRUE),"",IF(C80="",D79,HLOOKUP(C80,Cadastros!$U$5:$AX$7,2,FALSE)))) ->  | E80: =IF(D80="","",COUNTIF($D$14:D80,D80)) ->  | G80: =IF(F80="","",SUMPRODUCT(('Entrada de Dados'!$B$7:$B$1508<=$K$6)*('Entrada de Dados'!$G$7:$G$1508=F80)*('Entrada de Dados'!$H$7:$H$1508))) ->  | H80: =IF(F80="","",SUMPRODUCT(('Entrada de Dados'!$B$7:$B$1508<=$K$6)*('Entrada de Dados'!$G$7:$G$1508=F80)*('Entrada de Dados'!$I$7:$I$1508))) -> 
B81: =IF(MAX($B$14:B80)=MAX(Cadastros!$U$4:$AQ$4),"",IF(D80="",MAX($B$14:B80)+1,IF(E80=HLOOKUP(D80,Cadastros!$U$4:$AQ$6,3,TRUE),"",""))) ->  | C81: =IF(B81="","",HLOOKUP(B81,Cadastros!$U$4:$AX$5,2,TRUE)) ->  | D81: =IF(D80="",B81,IF(E80>=HLOOKUP(D80,Cadastros!$U$4:$AQ$6,3,TRUE),"",IF(C81="",D80,HLOOKUP(C81,Cadastros!$U$5:$AX$7,2,FALSE)))) ->  | E81: =IF(D81="","",COUNTIF($D$14:D81,D81)) ->  | G81: =IF(F81="","",SUMPRODUCT(('Entrada de Dados'!$B$7:$B$1508<=$K$6)*('Entrada de Dados'!$G$7:$G$1508=F81)*('Entrada de Dados'!$H$7:$H$1508))) ->  | H81: =IF(F81="","",SUMPRODUCT(('Entrada de Dados'!$B$7:$B$1508<=$K$6)*('Entrada de Dados'!$G$7:$G$1508=F81)*('Entrada de Dados'!$I$7:$I$1508))) -> 
B82: =IF(MAX($B$14:B81)=MAX(Cadastros!$U$4:$AQ$4),"",IF(D81="",MAX($B$14:B81)+1,IF(E81=HLOOKUP(D81,Cadastros!$U$4:$AQ$6,3,TRUE),"",""))) ->  | C82: =IF(B82="","",HLOOKUP(B82,Cadastros!$U$4:$AX$5,2,TRUE)) ->  | D82: =IF(D81="",B82,IF(E81>=HLOOKUP(D81,Cadastros!$U$4:$AQ$6,3,TRUE),"",IF(C82="",D81,HLOOKUP(C82,Cadastros!$U$5:$AX$7,2,FALSE)))) ->  | E82: =IF(D82="","",COUNTIF($D$14:D82,D82)) ->  | G82: =IF(F82="","",SUMPRODUCT(('Entrada de Dados'!$B$7:$B$1508<=$K$6)*('Entrada de Dados'!$G$7:$G$1508=F82)*('Entrada de Dados'!$H$7:$H$1508))) ->  | H82: =IF(F82="","",SUMPRODUCT(('Entrada de Dados'!$B$7:$B$1508<=$K$6)*('Entrada de Dados'!$G$7:$G$1508=F82)*('Entrada de Dados'!$I$7:$I$1508))) ->  | I82: =IF(H82="","",IF(H82=0,0,H82/G82)) -> 
B83: =IF(MAX($B$14:B82)=MAX(Cadastros!$U$4:$AQ$4),"",IF(D82="",MAX($B$14:B82)+1,IF(E82=HLOOKUP(D82,Cadastros!$U$4:$AQ$6,3,TRUE),"",""))) ->  | C83: =IF(B83="","",HLOOKUP(B83,Cadastros!$U$4:$AX$5,2,TRUE)) ->  | D83: =IF(D82="",B83,IF(E82>=HLOOKUP(D82,Cadastros!$U$4:$AQ$6,3,TRUE),"",IF(C83="",D82,HLOOKUP(C83,Cadastros!$U$5:$AX$7,2,FALSE)))) ->  | E83: =IF(D83="","",COUNTIF($D$14:D83,D83)) ->  | G83: =IF(F83="","",SUMPRODUCT(('Entrada de Dados'!$B$7:$B$1508<=$K$6)*('Entrada de Dados'!$G$7:$G$1508=F83)*('Entrada de Dados'!$H$7:$H$1508))) ->  | H83: =IF(F83="","",SUMPRODUCT(('Entrada de Dados'!$B$7:$B$1508<=$K$6)*('Entrada de Dados'!$G$7:$G$1508=F83)*('Entrada de Dados'!$I$7:$I$1508))) -> 
B84: =IF(MAX($B$14:B83)=MAX(Cadastros!$U$4:$AQ$4),"",IF(D83="",MAX($B$14:B83)+1,IF(E83=HLOOKUP(D83,Cadastros!$U$4:$AQ$6,3,TRUE),"",""))) ->  | C84: =IF(B84="","",HLOOKUP(B84,Cadastros!$U$4:$AX$5,2,TRUE)) ->  | D84: =IF(D83="",B84,IF(E83>=HLOOKUP(D83,Cadastros!$U$4:$AQ$6,3,TRUE),"",IF(C84="",D83,HLOOKUP(C84,Cadastros!$U$5:$AX$7,2,FALSE)))) ->  | E84: =IF(D84="","",COUNTIF($D$14:D84,D84)) ->  | G84: =IF(F84="","",SUMPRODUCT(('Entrada de Dados'!$B$7:$B$1508<=$K$6)*('Entrada de Dados'!$G$7:$G$1508=F84)*('Entrada de Dados'!$H$7:$H$1508))) ->  | H84: =IF(F84="","",SUMPRODUCT(('Entrada de Dados'!$B$7:$B$1508<=$K$6)*('Entrada de Dados'!$G$7:$G$1508=F84)*('Entrada de Dados'!$I$7:$I$1508))) -> 
B85: =IF(MAX($B$14:B84)=MAX(Cadastros!$U$4:$AQ$4),"",IF(D84="",MAX($B$14:B84)+1,IF(E84=HLOOKUP(D84,Cadastros!$U$4:$AQ$6,3,TRUE),"",""))) ->  | C85: =IF(B85="","",HLOOKUP(B85,Cadastros!$U$4:$AX$5,2,TRUE)) ->  | D85: =IF(D84="",B85,IF(E84>=HLOOKUP(D84,Cadastros!$U$4:$AQ$6,3,TRUE),"",IF(C85="",D84,HLOOKUP(C85,Cadastros!$U$5:$AX$7,2,FALSE)))) ->  | E85: =IF(D85="","",COUNTIF($D$14:D85,D85)) ->  | G85: =IF(F85="","",SUMPRODUCT(('Entrada de Dados'!$B$7:$B$1508<=$K$6)*('Entrada de Dados'!$G$7:$G$1508=F85)*('Entrada de Dados'!$H$7:$H$1508))) ->  | H85: =IF(F85="","",SUMPRODUCT(('Entrada de Dados'!$B$7:$B$1508<=$K$6)*('Entrada de Dados'!$G$7:$G$1508=F85)*('Entrada de Dados'!$I$7:$I$1508))) -> 
B86: =IF(MAX($B$14:B85)=MAX(Cadastros!$U$4:$AQ$4),"",IF(D85="",MAX($B$14:B85)+1,IF(E85=HLOOKUP(D85,Cadastros!$U$4:$AQ$6,3,TRUE),"",""))) ->  | C86: =IF(B86="","",HLOOKUP(B86,Cadastros!$U$4:$AX$5,2,TRUE)) ->  | D86: =IF(D85="",B86,IF(E85>=HLOOKUP(D85,Cadastros!$U$4:$AQ$6,3,TRUE),"",IF(C86="",D85,HLOOKUP(C86,Cadastros!$U$5:$AX$7,2,FALSE)))) ->  | E86: =IF(D86="","",COUNTIF($D$14:D86,D86)) ->  | G86: =IF(F86="","",SUMPRODUCT(('Entrada de Dados'!$B$7:$B$1508<=$K$6)*('Entrada de Dados'!$G$7:$G$1508=F86)*('Entrada de Dados'!$H$7:$H$1508))) ->  | H86: =IF(F86="","",SUMPRODUCT(('Entrada de Dados'!$B$7:$B$1508<=$K$6)*('Entrada de Dados'!$G$7:$G$1508=F86)*('Entrada de Dados'!$I$7:$I$1508))) -> 
B87: =IF(MAX($B$14:B86)=MAX(Cadastros!$U$4:$AQ$4),"",IF(D86="",MAX($B$14:B86)+1,IF(E86=HLOOKUP(D86,Cadastros!$U$4:$AQ$6,3,TRUE),"",""))) ->  | C87: =IF(B87="","",HLOOKUP(B87,Cadastros!$U$4:$AX$5,2,TRUE)) ->  | D87: =IF(D86="",B87,IF(E86>=HLOOKUP(D86,Cadastros!$U$4:$AQ$6,3,TRUE),"",IF(C87="",D86,HLOOKUP(C87,Cadastros!$U$5:$AX$7,2,FALSE)))) ->  | E87: =IF(D87="","",COUNTIF($D$14:D87,D87)) ->  | G87: =IF(F87="","",SUMPRODUCT(('Entrada de Dados'!$B$7:$B$1508<=$K$6)*('Entrada de Dados'!$G$7:$G$1508=F87)*('Entrada de Dados'!$H$7:$H$1508))) ->  | H87: =IF(F87="","",SUMPRODUCT(('Entrada de Dados'!$B$7:$B$1508<=$K$6)*('Entrada de Dados'!$G$7:$G$1508=F87)*('Entrada de Dados'!$I$7:$I$1508))) -> 
B88: =IF(MAX($B$14:B87)=MAX(Cadastros!$U$4:$AQ$4),"",IF(D87="",MAX($B$14:B87)+1,IF(E87=HLOOKUP(D87,Cadastros!$U$4:$AQ$6,3,TRUE),"",""))) ->  | C88: =IF(B88="","",HLOOKUP(B88,Cadastros!$U$4:$AX$5,2,TRUE)) ->  | D88: =IF(D87="",B88,IF(E87>=HLOOKUP(D87,Cadastros!$U$4:$AQ$6,3,TRUE),"",IF(C88="",D87,HLOOKUP(C88,Cadastros!$U$5:$AX$7,2,FALSE)))) ->  | E88: =IF(D88="","",COUNTIF($D$14:D88,D88)) ->  | G88: =IF(F88="","",SUMPRODUCT(('Entrada de Dados'!$B$7:$B$1508<=$K$6)*('Entrada de Dados'!$G$7:$G$1508=F88)*('Entrada de Dados'!$H$7:$H$1508))) ->  | H88: =IF(F88="","",SUMPRODUCT(('Entrada de Dados'!$B$7:$B$1508<=$K$6)*('Entrada de Dados'!$G$7:$G$1508=F88)*('Entrada de Dados'!$I$7:$I$1508))) -> 
B89: =IF(MAX($B$14:B88)=MAX(Cadastros!$U$4:$AQ$4),"",IF(D88="",MAX($B$14:B88)+1,IF(E88=HLOOKUP(D88,Cadastros!$U$4:$AQ$6,3,TRUE),"",""))) ->  | C89: =IF(B89="","",HLOOKUP(B89,Cadastros!$U$4:$AX$5,2,TRUE)) ->  | D89: =IF(D88="",B89,IF(E88>=HLOOKUP(D88,Cadastros!$U$4:$AQ$6,3,TRUE),"",IF(C89="",D88,HLOOKUP(C89,Cadastros!$U$5:$AX$7,2,FALSE)))) ->  | E89: =IF(D89="","",COUNTIF($D$14:D89,D89)) ->  | G89: =IF(F89="","",SUMPRODUCT(('Entrada de Dados'!$B$7:$B$1508<=$K$6)*('Entrada de Dados'!$G$7:$G$1508=F89)*('Entrada de Dados'!$H$7:$H$1508))) ->  | H89: =IF(F89="","",SUMPRODUCT(('Entrada de Dados'!$B$7:$B$1508<=$K$6)*('Entrada de Dados'!$G$7:$G$1508=F89)*('Entrada de Dados'!$I$7:$I$1508))) -> 
B90: =IF(MAX($B$14:B89)=MAX(Cadastros!$U$4:$AQ$4),"",IF(D89="",MAX($B$14:B89)+1,IF(E89=HLOOKUP(D89,Cadastros!$U$4:$AQ$6,3,TRUE),"",""))) ->  | C90: =IF(B90="","",HLOOKUP(B90,Cadastros!$U$4:$AX$5,2,TRUE)) ->  | D90: =IF(D89="",B90,IF(E89>=HLOOKUP(D89,Cadastros!$U$4:$AQ$6,3,TRUE),"",IF(C90="",D89,HLOOKUP(C90,Cadastros!$U$5:$AX$7,2,FALSE)))) ->  | E90: =IF(D90="","",COUNTIF($D$14:D90,D90)) ->  | G90: =IF(F90="","",SUMPRODUCT(('Entrada de Dados'!$B$7:$B$1508<=$K$6)*('Entrada de Dados'!$G$7:$G$1508=F90)*('Entrada de Dados'!$H$7:$H$1508))) ->  | H90: =IF(F90="","",SUMPRODUCT(('Entrada de Dados'!$B$7:$B$1508<=$K$6)*('Entrada de Dados'!$G$7:$G$1508=F90)*('Entrada de Dados'!$I$7:$I$1508))) -> 
B91: =IF(MAX($B$14:B90)=MAX(Cadastros!$U$4:$AQ$4),"",IF(D90="",MAX($B$14:B90)+1,IF(E90=HLOOKUP(D90,Cadastros!$U$4:$AQ$6,3,TRUE),"",""))) ->  | C91: =IF(B91="","",HLOOKUP(B91,Cadastros!$U$4:$AX$5,2,TRUE)) ->  | D91: =IF(D90="",B91,IF(E90>=HLOOKUP(D90,Cadastros!$U$4:$AQ$6,3,TRUE),"",IF(C91="",D90,HLOOKUP(C91,Cadastros!$U$5:$AX$7,2,FALSE)))) ->  | E91: =IF(D91="","",COUNTIF($D$14:D91,D91)) ->  | G91: =IF(F91="","",SUMPRODUCT(('Entrada de Dados'!$B$7:$B$1508<=$K$6)*('Entrada de Dados'!$G$7:$G$1508=F91)*('Entrada de Dados'!$H$7:$H$1508))) ->  | H91: =IF(F91="","",SUMPRODUCT(('Entrada de Dados'!$B$7:$B$1508<=$K$6)*('Entrada de Dados'!$G$7:$G$1508=F91)*('Entrada de Dados'!$I$7:$I$1508))) -> 
B92: =IF(MAX($B$14:B91)=MAX(Cadastros!$U$4:$AQ$4),"",IF(D91="",MAX($B$14:B91)+1,IF(E91=HLOOKUP(D91,Cadastros!$U$4:$AQ$6,3,TRUE),"",""))) ->  | C92: =IF(B92="","",HLOOKUP(B92,Cadastros!$U$4:$AX$5,2,TRUE)) ->  | D92: =IF(D91="",B92,IF(E91>=HLOOKUP(D91,Cadastros!$U$4:$AQ$6,3,TRUE),"",IF(C92="",D91,HLOOKUP(C92,Cadastros!$U$5:$AX$7,2,FALSE)))) ->  | E92: =IF(D92="","",COUNTIF($D$14:D92,D92)) ->  | F92: =IF(D92="","",HLOOKUP(D92,OFFSET(INDIRECT("Cadastros!$U$"&7,TRUE),,,52,D92),E92+1,FALSE)) ->  | G92: =IF(F92="","",SUMPRODUCT(('Entrada de Dados'!$B$7:$B$1508<=$K$6)*('Entrada de Dados'!$G$7:$G$1508=F92)*('Entrada de Dados'!$H$7:$H$1508))) ->  | H92: =IF(F92="","",SUMPRODUCT(('Entrada de Dados'!$B$7:$B$1508<=$K$6)*('Entrada de Dados'!$G$7:$G$1508=F92)*('Entrada de Dados'!$I$7:$I$1508))) ->  | J92: =IF(H92="","",H92/$H$11) ->  | L92: =IF(K92="","",K92/$H$11) -> 
B93: =IF(MAX($B$14:B92)=MAX(Cadastros!$U$4:$AQ$4),"",IF(D92="",MAX($B$14:B92)+1,IF(E92=HLOOKUP(D92,Cadastros!$U$4:$AQ$6,3,TRUE),"",""))) ->  | C93: =IF(B93="","",HLOOKUP(B93,Cadastros!$U$4:$AX$5,2,TRUE)) ->  | D93: =IF(D92="",B93,IF(E92>=HLOOKUP(D92,Cadastros!$U$4:$AQ$6,3,TRUE),"",IF(C93="",D92,HLOOKUP(C93,Cadastros!$U$5:$AX$7,2,FALSE)))) ->  | E93: =IF(D93="","",COUNTIF($D$14:D93,D93)) ->  | G93: =IF(F93="","",SUMPRODUCT(('Entrada de Dados'!$B$7:$B$1508<=$K$6)*('Entrada de Dados'!$G$7:$G$1508=F93)*('Entrada de Dados'!$H$7:$H$1508))) ->  | H93: =IF(F93="","",SUMPRODUCT(('Entrada de Dados'!$B$7:$B$1508<=$K$6)*('Entrada de Dados'!$G$7:$G$1508=F93)*('Entrada de Dados'!$I$7:$I$1508))) -> 
B94: =IF(MAX($B$14:B93)=MAX(Cadastros!$U$4:$AQ$4),"",IF(D93="",MAX($B$14:B93)+1,IF(E93=HLOOKUP(D93,Cadastros!$U$4:$AQ$6,3,TRUE),"",""))) ->  | C94: =IF(B94="","",HLOOKUP(B94,Cadastros!$U$4:$AX$5,2,TRUE)) ->  | D94: =IF(D93="",B94,IF(E93>=HLOOKUP(D93,Cadastros!$U$4:$AQ$6,3,TRUE),"",IF(C94="",D93,HLOOKUP(C94,Cadastros!$U$5:$AX$7,2,FALSE)))) ->  | E94: =IF(D94="","",COUNTIF($D$14:D94,D94)) ->  | G94: =IF(F94="","",SUMPRODUCT(('Entrada de Dados'!$B$7:$B$1508<=$K$6)*('Entrada de Dados'!$G$7:$G$1508=F94)*('Entrada de Dados'!$H$7:$H$1508))) ->  | H94: =IF(F94="","",SUMPRODUCT(('Entrada de Dados'!$B$7:$B$1508<=$K$6)*('Entrada de Dados'!$G$7:$G$1508=F94)*('Entrada de Dados'!$I$7:$I$1508))) -> 
B95: =IF(MAX($B$14:B94)=MAX(Cadastros!$U$4:$AQ$4),"",IF(D94="",MAX($B$14:B94)+1,IF(E94=HLOOKUP(D94,Cadastros!$U$4:$AQ$6,3,TRUE),"",""))) ->  | C95: =IF(B95="","",HLOOKUP(B95,Cadastros!$U$4:$AX$5,2,TRUE)) ->  | D95: =IF(D94="",B95,IF(E94>=HLOOKUP(D94,Cadastros!$U$4:$AQ$6,3,TRUE),"",IF(C95="",D94,HLOOKUP(C95,Cadastros!$U$5:$AX$7,2,FALSE)))) ->  | E95: =IF(D95="","",COUNTIF($D$14:D95,D95)) ->  | G95: =IF(F95="","",SUMPRODUCT(('Entrada de Dados'!$B$7:$B$1508<=$K$6)*('Entrada de Dados'!$G$7:$G$1508=F95)*('Entrada de Dados'!$H$7:$H$1508))) ->  | H95: =IF(F95="","",SUMPRODUCT(('Entrada de Dados'!$B$7:$B$1508<=$K$6)*('Entrada de Dados'!$G$7:$G$1508=F95)*('Entrada de Dados'!$I$7:$I$1508))) -> 
B96: =IF(MAX($B$14:B95)=MAX(Cadastros!$U$4:$AQ$4),"",IF(D95="",MAX($B$14:B95)+1,IF(E95=HLOOKUP(D95,Cadastros!$U$4:$AQ$6,3,TRUE),"",""))) ->  | C96: =IF(B96="","",HLOOKUP(B96,Cadastros!$U$4:$AX$5,2,TRUE)) ->  | D96: =IF(D95="",B96,IF(E95>=HLOOKUP(D95,Cadastros!$U$4:$AQ$6,3,TRUE),"",IF(C96="",D95,HLOOKUP(C96,Cadastros!$U$5:$AX$7,2,FALSE)))) ->  | E96: =IF(D96="","",COUNTIF($D$14:D96,D96)) ->  | G96: =IF(F96="","",SUMPRODUCT(('Entrada de Dados'!$B$7:$B$1508<=$K$6)*('Entrada de Dados'!$G$7:$G$1508=F96)*('Entrada de Dados'!$H$7:$H$1508))) ->  | H96: =IF(F96="","",SUMPRODUCT(('Entrada de Dados'!$B$7:$B$1508<=$K$6)*('Entrada de Dados'!$G$7:$G$1508=F96)*('Entrada de Dados'!$I$7:$I$1508))) -> 
B97: =IF(MAX($B$14:B96)=MAX(Cadastros!$U$4:$AQ$4),"",IF(D96="",MAX($B$14:B96)+1,IF(E96=HLOOKUP(D96,Cadastros!$U$4:$AQ$6,3,TRUE),"",""))) ->  | C97: =IF(B97="","",HLOOKUP(B97,Cadastros!$U$4:$AX$5,2,TRUE)) ->  | D97: =IF(D96="",B97,IF(E96>=HLOOKUP(D96,Cadastros!$U$4:$AQ$6,3,TRUE),"",IF(C97="",D96,HLOOKUP(C97,Cadastros!$U$5:$AX$7,2,FALSE)))) ->  | E97: =IF(D97="","",COUNTIF($D$14:D97,D97)) ->  | G97: =IF(F97="","",SUMPRODUCT(('Entrada de Dados'!$B$7:$B$1508<=$K$6)*('Entrada de Dados'!$G$7:$G$1508=F97)*('Entrada de Dados'!$H$7:$H$1508))) ->  | H97: =IF(F97="","",SUMPRODUCT(('Entrada de Dados'!$B$7:$B$1508<=$K$6)*('Entrada de Dados'!$G$7:$G$1508=F97)*('Entrada de Dados'!$I$7:$I$1508))) -> 
B98: =IF(MAX($B$14:B97)=MAX(Cadastros!$U$4:$AQ$4),"",IF(D97="",MAX($B$14:B97)+1,IF(E97=HLOOKUP(D97,Cadastros!$U$4:$AQ$6,3,TRUE),"",""))) ->  | C98: =IF(B98="","",HLOOKUP(B98,Cadastros!$U$4:$AX$5,2,TRUE)) ->  | D98: =IF(D97="",B98,IF(E97>=HLOOKUP(D97,Cadastros!$U$4:$AQ$6,3,TRUE),"",IF(C98="",D97,HLOOKUP(C98,Cadastros!$U$5:$AX$7,2,FALSE)))) ->  | E98: =IF(D98="","",COUNTIF($D$14:D98,D98)) ->  | G98: =IF(F98="","",SUMPRODUCT(('Entrada de Dados'!$B$7:$B$1508<=$K$6)*('Entrada de Dados'!$G$7:$G$1508=F98)*('Entrada de Dados'!$H$7:$H$1508))) ->  | H98: =IF(F98="","",SUMPRODUCT(('Entrada de Dados'!$B$7:$B$1508<=$K$6)*('Entrada de Dados'!$G$7:$G$1508=F98)*('Entrada de Dados'!$I$7:$I$1508))) -> 
B99: =IF(MAX($B$14:B98)=MAX(Cadastros!$U$4:$AQ$4),"",IF(D98="",MAX($B$14:B98)+1,IF(E98=HLOOKUP(D98,Cadastros!$U$4:$AQ$6,3,TRUE),"",""))) ->  | C99: =IF(B99="","",HLOOKUP(B99,Cadastros!$U$4:$AX$5,2,TRUE)) ->  | D99: =IF(D98="",B99,IF(E98>=HLOOKUP(D98,Cadastros!$U$4:$AQ$6,3,TRUE),"",IF(C99="",D98,HLOOKUP(C99,Cadastros!$U$5:$AX$7,2,FALSE)))) ->  | E99: =IF(D99="","",COUNTIF($D$14:D99,D99)) ->  | G99: =IF(F99="","",SUMPRODUCT(('Entrada de Dados'!$B$7:$B$1508<=$K$6)*('Entrada de Dados'!$G$7:$G$1508=F99)*('Entrada de Dados'!$H$7:$H$1508))) ->  | H99: =IF(F99="","",SUMPRODUCT(('Entrada de Dados'!$B$7:$B$1508<=$K$6)*('Entrada de Dados'!$G$7:$G$1508=F99)*('Entrada de Dados'!$I$7:$I$1508))) -> 
B100: =IF(MAX($B$14:B99)=MAX(Cadastros!$U$4:$AQ$4),"",IF(D99="",MAX($B$14:B99)+1,IF(E99=HLOOKUP(D99,Cadastros!$U$4:$AQ$6,3,TRUE),"",""))) ->  | C100: =IF(B100="","",HLOOKUP(B100,Cadastros!$U$4:$AX$5,2,TRUE)) ->  | D100: =IF(D99="",B100,IF(E99>=HLOOKUP(D99,Cadastros!$U$4:$AQ$6,3,TRUE),"",IF(C100="",D99,HLOOKUP(C100,Cadastros!$U$5:$AX$7,2,FALSE)))) ->  | E100: =IF(D100="","",COUNTIF($D$14:D100,D100)) ->  | G100: =IF(F100="","",SUMPRODUCT(('Entrada de Dados'!$B$7:$B$1508<=$K$6)*('Entrada de Dados'!$G$7:$G$1508=F100)*('Entrada de Dados'!$H$7:$H$1508))) ->  | H100: =IF(F100="","",SUMPRODUCT(('Entrada de Dados'!$B$7:$B$1508<=$K$6)*('Entrada de Dados'!$G$7:$G$1508=F100)*('Entrada de Dados'!$I$7:$I$1508))) -> 
B101: =IF(MAX($B$14:B100)=MAX(Cadastros!$U$4:$AQ$4),"",IF(D100="",MAX($B$14:B100)+1,IF(E100=HLOOKUP(D100,Cadastros!$U$4:$AQ$6,3,TRUE),"",""))) ->  | C101: =IF(B101="","",HLOOKUP(B101,Cadastros!$U$4:$AX$5,2,TRUE)) ->  | D101: =IF(D100="",B101,IF(E100>=HLOOKUP(D100,Cadastros!$U$4:$AQ$6,3,TRUE),"",IF(C101="",D100,HLOOKUP(C101,Cadastros!$U$5:$AX$7,2,FALSE)))) ->  | E101: =IF(D101="","",COUNTIF($D$14:D101,D101)) ->  | G101: =IF(F101="","",SUMPRODUCT(('Entrada de Dados'!$B$7:$B$1508<=$K$6)*('Entrada de Dados'!$G$7:$G$1508=F101)*('Entrada de Dados'!$H$7:$H$1508))) ->  | H101: =IF(F101="","",SUMPRODUCT(('Entrada de Dados'!$B$7:$B$1508<=$K$6)*('Entrada de Dados'!$G$7:$G$1508=F101)*('Entrada de Dados'!$I$7:$I$1508))) -> 
B102: =IF(MAX($B$14:B101)=MAX(Cadastros!$U$4:$AQ$4),"",IF(D101="",MAX($B$14:B101)+1,IF(E101=HLOOKUP(D101,Cadastros!$U$4:$AQ$6,3,TRUE),"",""))) ->  | C102: =IF(B102="","",HLOOKUP(B102,Cadastros!$U$4:$AX$5,2,TRUE)) ->  | D102: =IF(D101="",B102,IF(E101>=HLOOKUP(D101,Cadastros!$U$4:$AQ$6,3,TRUE),"",IF(C102="",D101,HLOOKUP(C102,Cadastros!$U$5:$AX$7,2,FALSE)))) ->  | E102: =IF(D102="","",COUNTIF($D$14:D102,D102)) ->  | G102: =IF(F102="","",SUMPRODUCT(('Entrada de Dados'!$B$7:$B$1508<=$K$6)*('Entrada de Dados'!$G$7:$G$1508=F102)*('Entrada de Dados'!$H$7:$H$1508))) ->  | H102: =IF(F102="","",SUMPRODUCT(('Entrada de Dados'!$B$7:$B$1508<=$K$6)*('Entrada de Dados'!$G$7:$G$1508=F102)*('Entrada de Dados'!$I$7:$I$1508))) -> 
B103: =IF(MAX($B$14:B102)=MAX(Cadastros!$U$4:$AQ$4),"",IF(D102="",MAX($B$14:B102)+1,IF(E102=HLOOKUP(D102,Cadastros!$U$4:$AQ$6,3,TRUE),"",""))) ->  | C103: =IF(B103="","",HLOOKUP(B103,Cadastros!$U$4:$AX$5,2,TRUE)) ->  | D103: =IF(D102="",B103,IF(E102>=HLOOKUP(D102,Cadastros!$U$4:$AQ$6,3,TRUE),"",IF(C103="",D102,HLOOKUP(C103,Cadastros!$U$5:$AX$7,2,FALSE)))) ->  | E103: =IF(D103="","",COUNTIF($D$14:D103,D103)) ->  | G103: =IF(F103="","",SUMPRODUCT(('Entrada de Dados'!$B$7:$B$1508<=$K$6)*('Entrada de Dados'!$G$7:$G$1508=F103)*('Entrada de Dados'!$H$7:$H$1508))) ->  | H103: =IF(F103="","",SUMPRODUCT(('Entrada de Dados'!$B$7:$B$1508<=$K$6)*('Entrada de Dados'!$G$7:$G$1508=F103)*('Entrada de Dados'!$I$7:$I$1508))) -> 
A104: =MAX(A14:A103) -> 54

Sheet Cadastros
E1: C A D A S T R O S
J3: Escolha primeiro o grupo à que a conta estará vinculada. *Máximo de 50 contas por grupo.
U4: =IF(OR(U5=0,U6=0),"",1) -> 1 | V4: =IF(V5=0,"",MAX($U$4:U4)+1) -> 2 | W4: =IF(W5=0,"",MAX($U$4:V4)+1) -> 3 | X4: =IF(X5=0,"",MAX($U$4:W4)+1) -> 4 | Y4: =IF(Y5=0,"",MAX($U$4:X4)+1) -> 5 | Z4: =IF(Z5=0,"",MAX($U$4:Y4)+1) -> 6 | AA4: =IF(AA5=0,"",MAX($U$4:Z4)+1) -> 7 | AB4: =IF(AB5=0,"",MAX($U$4:AA4)+1) -> 8 | AC4: =IF(AC5=0,"",MAX($U$4:AB4)+1) -> 9 | AD4: =IF(AD5=0,"",MAX($U$4:AC4)+1) -> 10 | AE4: =IF(AE5=0,"",MAX($U$4:AD4)+1) -> 11 | AF4: =IF(AF5=0,"",MAX($U$4:AE4)+1) ->  | AG4: =IF(AG5=0,"",MAX($U$4:AF4)+1) ->  | AH4: =IF(AH5=0,"",MAX($U$4:AG4)+1) ->  | AI4: =IF(AI5=0,"",MAX($U$4:AH4)+1) ->  | AJ4: =IF(AJ5=0,"",MAX($U$4:AI4)+1) ->  | AK4: =IF(AK5=0,"",MAX($U$4:AJ4)+1) ->  | AL4: =IF(AL5=0,"",MAX($U$4:AK4)+1) ->  | AM4: =IF(AM5=0,"",MAX($U$4:AL4)+1) ->  | AN4: =IF(AN5=0,"",MAX($U$4:AM4)+1) ->  | AO4: =IF(AO5=0,"",MAX($U$4:AN4)+1) ->  | AP4: =IF(AP5=0,"",MAX($U$4:AO4)+1) ->  | AQ4: =IF(AQ5=0,"",MAX($U$4:AP4)+1) -> 
B5: Os dados podem ser alfanuméricos | U5: =INDIRECT(ADDRESS(8+U7-1,7)) -> 01 Imobilizado | V5: 01 Investimentos | W5: 02 Serviços | X5: 02 Vendas | Y5: 03 Administrativas | Z5: 03 Comunicações | AA5: 03 Custos | AB5: 03 Desenvolvimento Organizacional (DO) | AC5: 03 Impostos | AD5: 03 Infraestrutura | AE5: 03 Treinamentos | AF5: 0 | AG5: 0 | AH5: 0 | AI5: 0 | AJ5: 0 | AK5: 0 | AL5: 0 | AM5: 0 | AN5: 0 | AO5: 0 | AP5: 0 | AQ5: 0 | AR5: 0 | AS5: 0 | AT5: 0 | AU5: 0 | AV5: 0 | AW5: 0 | AX5: 0
U6: =COUNTA(U8:U57)-COUNTBLANK(U8:U57) -> 1 | V6: =COUNTA(V8:V57)-COUNTBLANK(V8:V57) -> 0 | W6: 3 | X6: 3 | Y6: 3 | Z6: 5 | AA6: 4 | AB6: 5 | AC6: 1 | AD6: 3 | AE6: 2 | AF6: 0 | AG6: 0 | AH6: 0 | AI6: 0 | AJ6: 0 | AK6: 0 | AL6: 0 | AM6: 0 | AN6: 0 | AO6: 0 | AP6: 0 | AQ6: 0 | AR6: 0 | AS6: 0 | AT6: 0 | AU6: 0 | AV6: 0 | AW6: 0 | AX6: 0
U7: 1 | V7: 2 | W7: 3 | X7: 4 | Y7: 5 | Z7: 6 | AA7: 7 | AB7: 8 | AC7: 9 | AD7: 10 | AE7: 11 | AF7: 12 | AG7: 13 | AH7: 14 | AI7: 15 | AJ7: 16 | AK7: 17 | AL7: 18 | AM7: 19 | AN7: 20 | AO7: 21 | AP7: 22 | AQ7: 23 | AR7: 24 | AS7: 25 | AT7: 26 | AU7: 27 | AV7: 28 | AW7: 29 | AX7: 30
C8: Finanças | G8: 01 Imobilizado | L8: 01 Imobilizado | N8: =L8&O8 -> 01 Imobilizado1 | O8: =IF(P8="","",COUNTIF($L$8:L8,L8)) -> 1 | P8: Máquinas e Equipamentos | T8: 1 | U8: =IF(ISERROR(VLOOKUP(U$5&$T8,$N$8:$P$1009,3,FALSE)),"",VLOOKUP(U$5&$T8,$N$8:$P$1009,3,FALSE)) -> Máquinas e Equipamentos | W8: Consultoria | X8: Produto "A" | Y8: Informática | Z8: Celular | AA8: Embalagem | AB8: Administrativos | AC8: ICMS s/ Vendas | AD8: Água e Esgoto | AE8: =IF(ISERROR(VLOOKUP(AE$5&$T8,$N$8:$P$1009,3,FALSE)),"",VLOOKUP(AE$5&$T8,$N$8:$P$1009,3,FALSE)) -> Informática | AO8: =IF(ISERROR(VLOOKUP(AO$5&$T8,$N$8:$P$1009,3,FALSE)),"",VLOOKUP(AO$5&$T8,$N$8:$P$1009,3,FALSE)) -> 
C9: Presidência | G9: 01 Investimentos | L9: 02 Serviços | N9: 02 Serviços1 | O9: =IF(P9="","",COUNTIF($L$8:L9,L9)) -> 1 | P9: Consultoria | T9: 2 | W9: Manutenção | X9: Produto "B" | Y9: Matl. De Escritório | Z9: Internet | AA9: Energia Elétrica | AB9: Conultoria | AD9: Energia Elétrica | AE9: Inglês in company
C10: Produção | G10: 02 Serviços | L10: 02 Serviços | N10: 02 Serviços2 | O10: =IF(P10="","",COUNTIF($L$8:L10,L10)) -> 2 | P10: Manutenção | T10: 3 | U10: =IF(ISERROR(VLOOKUP(U$5&$T10,$N$8:$P$1009,3,FALSE)),"",VLOOKUP(U$5&$T10,$N$8:$P$1009,3,FALSE)) ->  | W10: Operacionais | X10: Produto "C" | Y10: Salários | Z10: Rádio - Nextel | AA10: Mão de Obra | AB10: Estudo de Cargos e Salários | AD10: Manutenção Predial | AE10: =IF(ISERROR(VLOOKUP(AE$5&$T10,$N$8:$P$1009,3,FALSE)),"",VLOOKUP(AE$5&$T10,$N$8:$P$1009,3,FALSE)) ->  | AO10: =IF(ISERROR(VLOOKUP(AO$5&$T10,$N$8:$P$1009,3,FALSE)),"",VLOOKUP(AO$5&$T10,$N$8:$P$1009,3,FALSE)) -> 
C11: Publicidade | G11: 02 Vendas | L11: 02 Serviços | N11: 02 Serviços3 | O11: =IF(P11="","",COUNTIF($L$8:L11,L11)) -> 3 | P11: Operacionais | T11: 4 | Z11: Satélite | AA11: Matéria Prima | AB11: Operacionais
C12: Receitas não Operacionais | G12: 03 Administrativas | L12: 02 Vendas | N12: 02 Vendas1 | O12: =IF(P12="","",COUNTIF($L$8:L12,L12)) -> 1 | P12: Produto "A" | T12: 5 | Z12: Telefones | AB12: Pesquisa de Clima
C13: Receitas Operacionais | G13: 03 Comunicações | L13: 02 Vendas | N13: 02 Vendas2 | O13: =IF(P13="","",COUNTIF($L$8:L13,L13)) -> 2 | P13: Produto "B" | T13: 6
C14: Recursos Humanos | G14: 03 Custos | L14: 02 Vendas | N14: 02 Vendas3 | O14: =IF(P14="","",COUNTIF($L$8:L14,L14)) -> 3 | P14: Produto "C" | T14: 7
C15: Serviços Gerais (mass alocation) | G15: 03 Desenvolvimento Organizacional (DO) | L15: 03 Administrativas | N15: 03 Administrativas1 | O15: =IF(P15="","",COUNTIF($L$8:L15,L15)) -> 1 | P15: Informática | T15: 8
G16: 03 Impostos | L16: 03 Administrativas | N16: 03 Administrativas2 | O16: =IF(P16="","",COUNTIF($L$8:L16,L16)) -> 2 | P16: Matl. De Escritório | T16: 9
G17: 03 Infraestrutura | L17: 03 Administrativas | N17: 03 Administrativas3 | O17: =IF(P17="","",COUNTIF($L$8:L17,L17)) -> 3 | P17: Salários | T17: 10
G18: 03 Treinamentos | L18: 03 Comunicações | N18: 03 Comunicações1 | O18: =IF(P18="","",COUNTIF($L$8:L18,L18)) -> 1 | P18: Celular | T18: 11 | U18: =IF(ISERROR(VLOOKUP(U$5&$T18,$N$8:$P$1009,3,FALSE)),"",VLOOKUP(U$5&$T18,$N$8:$P$1009,3,FALSE)) ->  | AE18: =IF(ISERROR(VLOOKUP(AE$5&$T18,$N$8:$P$1009,3,FALSE)),"",VLOOKUP(AE$5&$T18,$N$8:$P$1009,3,FALSE)) ->  | AO18: =IF(ISERROR(VLOOKUP(AO$5&$T18,$N$8:$P$1009,3,FALSE)),"",VLOOKUP(AO$5&$T18,$N$8:$P$1009,3,FALSE)) -> 
L19: 03 Comunicações | N19: 03 Comunicações2 | O19: =IF(P19="","",COUNTIF($L$8:L19,L19)) -> 2 | P19: Internet | T19: 12
L20: 03 Comunicações | N20: 03 Comunicações3 | O20: =IF(P20="","",COUNTIF($L$8:L20,L20)) -> 3 | P20: Rádio - Nextel | T20: 13
L21: 03 Comunicações | N21: 03 Comunicações4 | O21: =IF(P21="","",COUNTIF($L$8:L21,L21)) -> 4 | P21: Satélite | T21: 14
L22: 03 Comunicações | N22: 03 Comunicações5 | O22: =IF(P22="","",COUNTIF($L$8:L22,L22)) -> 5 | P22: Telefones | T22: 15
L23: 03 Custos | N23: 03 Custos1 | O23: =IF(P23="","",COUNTIF($L$8:L23,L23)) -> 1 | P23: Embalagem | T23: 16
L24: 03 Custos | N24: 03 Custos2 | O24: =IF(P24="","",COUNTIF($L$8:L24,L24)) -> 2 | P24: Energia Elétrica | T24: 17
L25: 03 Custos | N25: 03 Custos3 | O25: =IF(P25="","",COUNTIF($L$8:L25,L25)) -> 3 | P25: Mão de Obra | T25: 18
L26: 03 Custos | N26: 03 Custos4 | O26: =IF(P26="","",COUNTIF($L$8:L26,L26)) -> 4 | P26: Matéria Prima | T26: 19
L27: 03 Desenvolvimento Organizacional (DO) | N27: 03 Desenvolvimento Organizacional (DO)1 | O27: =IF(P27="","",COUNTIF($L$8:L27,L27)) -> 1 | P27: Administrativos | T27: 20
L28: 03 Desenvolvimento Organizacional (DO) | N28: 03 Desenvolvimento Organizacional (DO)2 | O28: =IF(P28="","",COUNTIF($L$8:L28,L28)) -> 2 | P28: Conultoria | T28: 21 | U28: =IF(ISERROR(VLOOKUP(U$5&$T28,$N$8:$P$1009,3,FALSE)),"",VLOOKUP(U$5&$T28,$N$8:$P$1009,3,FALSE)) ->  | AE28: =IF(ISERROR(VLOOKUP(AE$5&$T28,$N$8:$P$1009,3,FALSE)),"",VLOOKUP(AE$5&$T28,$N$8:$P$1009,3,FALSE)) ->  | AO28: =IF(ISERROR(VLOOKUP(AO$5&$T28,$N$8:$P$1009,3,FALSE)),"",VLOOKUP(AO$5&$T28,$N$8:$P$1009,3,FALSE)) -> 
L29: 03 Desenvolvimento Organizacional (DO) | N29: 03 Desenvolvimento Organizacional (DO)3 | O29: =IF(P29="","",COUNTIF($L$8:L29,L29)) -> 3 | P29: Estudo de Cargos e Salários | T29: 29
L30: 03 Desenvolvimento Organizacional (DO) | N30: 03 Desenvolvimento Organizacional (DO)4 | O30: =IF(P30="","",COUNTIF($L$8:L30,L30)) -> 4 | P30: Operacionais | T30: 22
L31: 03 Desenvolvimento Organizacional (DO) | N31: 03 Desenvolvimento Organizacional (DO)5 | O31: =IF(P31="","",COUNTIF($L$8:L31,L31)) -> 5 | P31: Pesquisa de Clima | T31: 23
L32: 03 Impostos | N32: 03 Impostos1 | O32: =IF(P32="","",COUNTIF($L$8:L32,L32)) -> 1 | P32: ICMS s/ Vendas | T32: 24
L33: 03 Infraestrutura | N33: 03 Infraestrutura1 | O33: =IF(P33="","",COUNTIF($L$8:L33,L33)) -> 1 | P33: Água e Esgoto | T33: 25
L34: 03 Infraestrutura | N34: 03 Infraestrutura2 | O34: =IF(P34="","",COUNTIF($L$8:L34,L34)) -> 2 | P34: Energia Elétrica | T34: 26
L35: 03 Infraestrutura | N35: 03 Infraestrutura3 | O35: =IF(P35="","",COUNTIF($L$8:L35,L35)) -> 3 | P35: Manutenção Predial | T35: 27
L36: 03 Treinamentos | N36: 03 Treinamentos1 | O36: =IF(P36="","",COUNTIF($L$8:L36,L36)) -> 1 | P36: Informática | T36: 28
L37: 03 Treinamentos | N37: 03 Treinamentos2 | O37: =IF(P37="","",COUNTIF($L$8:L37,L37)) -> 2 | P37: Inglês in company | T37: 30
O38: =IF(P38="","",COUNTIF($L$8:L38,L38)) ->  | T38: 31 | U38: =IF(ISERROR(VLOOKUP(U$5&$T38,$N$8:$P$1009,3,FALSE)),"",VLOOKUP(U$5&$T38,$N$8:$P$1009,3,FALSE)) ->  | AE38: =IF(ISERROR(VLOOKUP(AE$5&$T38,$N$8:$P$1009,3,FALSE)),"",VLOOKUP(AE$5&$T38,$N$8:$P$1009,3,FALSE)) ->  | AO38: =IF(ISERROR(VLOOKUP(AO$5&$T38,$N$8:$P$1009,3,FALSE)),"",VLOOKUP(AO$5&$T38,$N$8:$P$1009,3,FALSE)) -> 
O39: =IF(P39="","",COUNTIF($L$8:L39,L39)) ->  | T39: 32
O40: =IF(P40="","",COUNTIF($L$8:L40,L40)) ->  | T40: 33
O41: =IF(P41="","",COUNTIF($L$8:L41,L41)) ->  | T41: 34
O42: =IF(P42="","",COUNTIF($L$8:L42,L42)) ->  | T42: 35
O43: =IF(P43="","",COUNTIF($L$8:L43,L43)) ->  | T43: 36
O44: =IF(P44="","",COUNTIF($L$8:L44,L44)) ->  | T44: 37
O45: =IF(P45="","",COUNTIF($L$8:L45,L45)) ->  | T45: 38
O46: =IF(P46="","",COUNTIF($L$8:L46,L46)) ->  | T46: 39
O47: =IF(P47="","",COUNTIF($L$8:L47,L47)) ->  | T47: 40
O48: =IF(P48="","",COUNTIF($L$8:L48,L48)) ->  | T48: 41 | U48: =IF(ISERROR(VLOOKUP(U$5&$T48,$N$8:$P$1009,3,FALSE)),"",VLOOKUP(U$5&$T48,$N$8:$P$1009,3,FALSE)) ->  | AE48: =IF(ISERROR(VLOOKUP(AE$5&$T48,$N$8:$P$1009,3,FALSE)),"",VLOOKUP(AE$5&$T48,$N$8:$P$1009,3,FALSE)) ->  | AO48: =IF(ISERROR(VLOOKUP(AO$5&$T48,$N$8:$P$1009,3,FALSE)),"",VLOOKUP(AO$5&$T48,$N$8:$P$1009,3,FALSE)) -> 
O49: =IF(P49="","",COUNTIF($L$8:L49,L49)) ->  | T49: 42
O50: =IF(P50="","",COUNTIF($L$8:L50,L50)) ->  | T50: 43
O51: =IF(P51="","",COUNTIF($L$8:L51,L51)) ->  | T51: 44
O52: =IF(P52="","",COUNTIF($L$8:L52,L52)) ->  | T52: 45
O53: =IF(P53="","",COUNTIF($L$8:L53,L53)) ->  | T53: 46
O54: =IF(P54="","",COUNTIF($L$8:L54,L54)) ->  | T54: 47
O55: =IF(P55="","",COUNTIF($L$8:L55,L55)) ->  | T55: 48
O56: =IF(P56="","",COUNTIF($L$8:L56,L56)) ->  | T56: 49
O57: =IF(P57="","",COUNTIF($L$8:L57,L57)) ->  | T57: 50
O58: =IF(P58="","",COUNTIF($L$8:L58,L58)) -> 
O59: =IF(P59="","",COUNTIF($L$8:L59,L59)) -> 
O60: =IF(P60="","",COUNTIF($L$8:L60,L60)) -> 
O61: =IF(P61="","",COUNTIF($L$8:L61,L61)) -> 
O62: =IF(P62="","",COUNTIF($L$8:L62,L62)) -> 
O63: =IF(P63="","",COUNTIF($L$8:L63,L63)) -> 
O64: =IF(P64="","",COUNTIF($L$8:L64,L64)) -> 
O65: =IF(P65="","",COUNTIF($L$8:L65,L65)) -> 
O66: =IF(P66="","",COUNTIF($L$8:L66,L66)) -> 
O67: =IF(P67="","",COUNTIF($L$8:L67,L67)) -> 
O68: =IF(P68="","",COUNTIF($L$8:L68,L68)) -> 
O69: =IF(P69="","",COUNTIF($L$8:L69,L69)) -> 
O70: =IF(P70="","",COUNTIF($L$8:L70,L70)) -> 
O71: =IF(P71="","",COUNTIF($L$8:L71,L71)) -> 
N72: =L72&O72 ->  | O72: =IF(P72="","",COUNTIF($L$8:L72,L72)) -> 
O73: =IF(P73="","",COUNTIF($L$8:L73,L73)) -> 
O74: =IF(P74="","",COUNTIF($L$8:L74,L74)) -> 
O75: =IF(P75="","",COUNTIF($L$8:L75,L75)) -> 
O76: =IF(P76="","",COUNTIF($L$8:L76,L76)) -> 
O77: =IF(P77="","",COUNTIF($L$8:L77,L77)) -> 
O78: =IF(P78="","",COUNTIF($L$8:L78,L78)) -> 
O79: =IF(P79="","",COUNTIF($L$8:L79,L79)) -> 
O80: =IF(P80="","",COUNTIF($L$8:L80,L80)) -> 
O81: =IF(P81="","",COUNTIF($L$8:L81,L81)) -> 
O82: =IF(P82="","",COUNTIF($L$8:L82,L82)) -> 
O83: =IF(P83="","",COUNTIF($L$8:L83,L83)) -> 
O84: =IF(P84="","",COUNTIF($L$8:L84,L84)) -> 
O85: =IF(P85="","",COUNTIF($L$8:L85,L85)) -> 
O86: =IF(P86="","",COUNTIF($L$8:L86,L86)) -> 
O87: =IF(P87="","",COUNTIF($L$8:L87,L87)) -> 
O88: =IF(P88="","",COUNTIF($L$8:L88,L88)) -> 
O89: =IF(P89="","",COUNTIF($L$8:L89,L89)) -> 
O90: =IF(P90="","",COUNTIF($L$8:L90,L90)) -> 
O91: =IF(P91="","",COUNTIF($L$8:L91,L91)) -> 
O92: =IF(P92="","",COUNTIF($L$8:L92,L92)) -> 
O93: =IF(P93="","",COUNTIF($L$8:L93,L93)) -> 
O94: =IF(P94="","",COUNTIF($L$8:L94,L94)) -> 
O95: =IF(P95="","",COUNTIF($L$8:L95,L95)) -> 
O96: =IF(P96="","",COUNTIF($L$8:L96,L96)) -> 
O97: =IF(P97="","",COUNTIF($L$8:L97,L97)) -> 
O98: =IF(P98="","",COUNTIF($L$8:L98,L98)) -> 
O99: =IF(P99="","",COUNTIF($L$8:L99,L99)) -> 
O100: =IF(P100="","",COUNTIF($L$8:L100,L100)) -> 
O101: =IF(P101="","",COUNTIF($L$8:L101,L101)) -> 
O102: =IF(P102="","",COUNTIF($L$8:L102,L102)) -> 
O103: =IF(P103="","",COUNTIF($L$8:L103,L103)) -> 
O104: =IF(P104="","",COUNTIF($L$8:L104,L104)) -> 
O105: =IF(P105="","",COUNTIF($L$8:L105,L105)) -> 
O106: =IF(P106="","",COUNTIF($L$8:L106,L106)) -> 
O107: =IF(P107="","",COUNTIF($L$8:L107,L107)) -> 
O108: =IF(P108="","",COUNTIF($L$8:L108,L108)) -> 
O109: =IF(P109="","",COUNTIF($L$8:L109,L109)) -> 
O110: =IF(P110="","",COUNTIF($L$8:L110,L110)) -> 
O111: =IF(P111="","",COUNTIF($L$8:L111,L111)) -> 
O112: =IF(P112="","",COUNTIF($L$8:L112,L112)) -> 
O113: =IF(P113="","",COUNTIF($L$8:L113,L113)) -> 
O114: =IF(P114="","",COUNTIF($L$8:L114,L114)) -> 
O115: =IF(P115="","",COUNTIF($L$8:L115,L115)) -> 
O116: =IF(P116="","",COUNTIF($L$8:L116,L116)) -> 
O117: =IF(P117="","",COUNTIF($L$8:L117,L117)) -> 
O118: =IF(P118="","",COUNTIF($L$8:L118,L118)) -> 
O119: =IF(P119="","",COUNTIF($L$8:L119,L119)) -> 
O120: =IF(P120="","",COUNTIF($L$8:L120,L120)) -> 
O121: =IF(P121="","",COUNTIF($L$8:L121,L121)) -> 
O122: =IF(P122="","",COUNTIF($L$8:L122,L122)) -> 
O123: =IF(P123="","",COUNTIF($L$8:L123,L123)) -> 
O124: =IF(P124="","",COUNTIF($L$8:L124,L124)) -> 
O125: =IF(P125="","",COUNTIF($L$8:L125,L125)) -> 
O126: =IF(P126="","",COUNTIF($L$8:L126,L126)) -> 
O127: =IF(P127="","",COUNTIF($L$8:L127,L127)) -> 
O128: =IF(P128="","",COUNTIF($L$8:L128,L128)) -> 
O129: =IF(P129="","",COUNTIF($L$8:L129,L129)) -> 
O130: =IF(P130="","",COUNTIF($L$8:L130,L130)) -> 
O131: =IF(P131="","",COUNTIF($L$8:L131,L131)) -> 
O132: =IF(P132="","",COUNTIF($L$8:L132,L132)) -> 
O133: =IF(P133="","",COUNTIF($L$8:L133,L133)) -> 
O134: =IF(P134="","",COUNTIF($L$8:L134,L134)) -> 
O135: =IF(P135="","",COUNTIF($L$8:L135,L135)) -> 
N136: =L136&O136 ->  | O136: =IF(P136="","",COUNTIF($L$8:L136,L136)) -> 
O137: =IF(P137="","",COUNTIF($L$8:L137,L137)) -> 
O138: =IF(P138="","",COUNTIF($L$8:L138,L138)) -> 
O139: =IF(P139="","",COUNTIF($L$8:L139,L139)) -> 
O140: =IF(P140="","",COUNTIF($L$8:L140,L140)) -> 
O141: =IF(P141="","",COUNTIF($L$8:L141,L141)) -> 
O142: =IF(P142="","",COUNTIF($L$8:L142,L142)) -> 
O143: =IF(P143="","",COUNTIF($L$8:L143,L143)) -> 
O144: =IF(P144="","",COUNTIF($L$8:L144,L144)) -> 
O145: =IF(P145="","",COUNTIF($L$8:L145,L145)) -> 
O146: =IF(P146="","",COUNTIF($L$8:L146,L146)) -> 
O147: =IF(P147="","",COUNTIF($L$8:L147,L147)) -> 
O148: =IF(P148="","",COUNTIF($L$8:L148,L148)) -> 
O149: =IF(P149="","",COUNTIF($L$8:L149,L149)) -> 
O150: =IF(P150="","",COUNTIF($L$8:L150,L150)) -> 
O151: =IF(P151="","",COUNTIF($L$8:L151,L151)) -> 
O152: =IF(P152="","",COUNTIF($L$8:L152,L152)) -> 
O153: =IF(P153="","",COUNTIF($L$8:L153,L153)) -> 
O154: =IF(P154="","",COUNTIF($L$8:L154,L154)) -> 
O155: =IF(P155="","",COUNTIF($L$8:L155,L155)) -> 
O156: =IF(P156="","",COUNTIF($L$8:L156,L156)) -> 
O157: =IF(P157="","",COUNTIF($L$8:L157,L157)) -> 
O158: =IF(P158="","",COUNTIF($L$8:L158,L158)) -> 
O159: =IF(P159="","",COUNTIF($L$8:L159,L159)) -> 
O160: =IF(P160="","",COUNTIF($L$8:L160,L160)) -> 
O161: =IF(P161="","",COUNTIF($L$8:L161,L161)) -> 
O162: =IF(P162="","",COUNTIF($L$8:L162,L162)) -> 
O163: =IF(P163="","",COUNTIF($L$8:L163,L163)) -> 
O164: =IF(P164="","",COUNTIF($L$8:L164,L164)) -> 
O165: =IF(P165="","",COUNTIF($L$8:L165,L165)) -> 
O166: =IF(P166="","",COUNTIF($L$8:L166,L166)) -> 
O167: =IF(P167="","",COUNTIF($L$8:L167,L167)) -> 
O168: =IF(P168="","",COUNTIF($L$8:L168,L168)) -> 
O169: =IF(P169="","",COUNTIF($L$8:L169,L169)) -> 
O170: =IF(P170="","",COUNTIF($L$8:L170,L170)) -> 
O171: =IF(P171="","",COUNTIF($L$8:L171,L171)) -> 
O172: =IF(P172="","",COUNTIF($L$8:L172,L172)) -> 
O173: =IF(P173="","",COUNTIF($L$8:L173,L173)) -> 
O174: =IF(P174="","",COUNTIF($L$8:L174,L174)) -> 
O175: =IF(P175="","",COUNTIF($L$8:L175,L175)) -> 
O176: =IF(P176="","",COUNTIF($L$8:L176,L176)) -> 
O177: =IF(P177="","",COUNTIF($L$8:L177,L177)) -> 
O178: =IF(P178="","",COUNTIF($L$8:L178,L178)) -> 
O179: =IF(P179="","",COUNTIF($L$8:L179,L179)) -> 
O180: =IF(P180="","",COUNTIF($L$8:L180,L180)) -> 
O181: =IF(P181="","",COUNTIF($L$8:L181,L181)) -> 
O182: =IF(P182="","",COUNTIF($L$8:L182,L182)) -> 
O183: =IF(P183="","",COUNTIF($L$8:L183,L183)) -> 
O184: =IF(P184="","",COUNTIF($L$8:L184,L184)) -> 
O185: =IF(P185="","",COUNTIF($L$8:L185,L185)) -> 
O186: =IF(P186="","",COUNTIF($L$8:L186,L186)) -> 
O187: =IF(P187="","",COUNTIF($L$8:L187,L187)) -> 
O188: =IF(P188="","",COUNTIF($L$8:L188,L188)) -> 
O189: =IF(P189="","",COUNTIF($L$8:L189,L189)) -> 
O190: =IF(P190="","",COUNTIF($L$8:L190,L190)) -> 
O191: =IF(P191="","",COUNTIF($L$8:L191,L191)) -> 
O192: =IF(P192="","",COUNTIF($L$8:L192,L192)) -> 
O193: =IF(P193="","",COUNTIF($L$8:L193,L193)) -> 
O194: =IF(P194="","",COUNTIF($L$8:L194,L194)) -> 
O195: =IF(P195="","",COUNTIF($L$8:L195,L195)) -> 
O196: =IF(P196="","",COUNTIF($L$8:L196,L196)) -> 
O197: =IF(P197="","",COUNTIF($L$8:L197,L197)) -> 
O198: =IF(P198="","",COUNTIF($L$8:L198,L198)) -> 
O199: =IF(P199="","",COUNTIF($L$8:L199,L199)) -> 
N200: =L200&O200 ->  | O200: =IF(P200="","",COUNTIF($L$8:L200,L200)) -> 
O201: =IF(P201="","",COUNTIF($L$8:L201,L201)) -> 
... 808 more rows
